Effective Date,Department,Supplier Name,Payment Date,Amount **,Purpose of Spend,Merchant Category,Card Transaction
Statement 19/05/2015 to 17/06/2015,Adults and Communities,Am zon Svcs Europe SAR,02/06/2015,9.40,Books - General,Book Stores,GPC
Statement 19/05/2015 to 17/06/2015,Adults and Communities,Am zon Svcs Europe SAR,03/06/2015,13.99,Books - General,Book Stores,GPC
Statement 19/05/2015 to 17/06/2015,Adults and Communities,Am zon Svcs Europe SAR,02/06/2015,59.90,General Equipment - General,Book Stores,GPC
Statement 19/05/2015 to 17/06/2015,Adults and Communities,Am zon UK M rketpl ce,03/06/2015,28.55,Materials - General,Miscellaneous and Specialty Retail Stores,GPC
Statement 19/05/2015 to 17/06/2015,Adults and Communities,Am zon UK Ret il,04/06/2015,19.34,Materials - General,Direct Marketers - Other,GPC
Statement 19/05/2015 to 17/06/2015,Adults and Communities,Amazon Svcs Europe SAR,21/05/2015,-8.99,Books - General,Book Stores,GPC
Statement 19/05/2015 to 17/06/2015,Adults and Communities,Amazon Svcs Europe SAR,26/05/2015,11.98,Books - General,Book Stores,GPC
Statement 19/05/2015 to 17/06/2015,Adults and Communities,Amazon Svcs Europe SAR,10/06/2015,24.00,Books - General,Book Stores,GPC
Statement 19/05/2015 to 17/06/2015,Adults and Communities,Amazon Svcs Europe SAR,11/06/2015,11.79,Books - General,Book Stores,GPC
Statement 19/05/2015 to 17/06/2015,Adults and Communities,Amazon Svcs Europe SAR,11/06/2015,6.11,Books - General,Book Stores,GPC
Statement 19/05/2015 to 17/06/2015,Adults and Communities,Amazon Svcs Europe SAR,29/05/2015,54.95,Consultants & Specialists - General,Book Stores,GPC
Statement 19/05/2015 to 17/06/2015,Adults and Communities,Amazon Svcs Europe SAR,16/06/2015,2.20,Display/Conservn/Exhibitions - General,Book Stores,GPC
Statement 19/05/2015 to 17/06/2015,Adults and Communities,Amazon Svcs Europe SAR,16/06/2015,7.62,Display/Conservn/Exhibitions - General,Book Stores,GPC
Statement 19/05/2015 to 17/06/2015,Adults and Communities,Amazon Svcs Europe SAR,16/06/2015,9.44,Display/Conservn/Exhibitions - General,Book Stores,GPC
Statement 19/05/2015 to 17/06/2015,Adults and Communities,Amazon Svcs Europe SAR,21/05/2015,67.96,General Equipment - General,Book Stores,GPC
Statement 19/05/2015 to 17/06/2015,Adults and Communities,Amazon Svcs Europe SAR,22/05/2015,25.97,Other Expenditure - General,Book Stores,GPC
Statement 19/05/2015 to 17/06/2015,Adults and Communities,Amazon Svcs Europe SAR,22/05/2015,1.91,Other Expenditure - General,Book Stores,GPC
Statement 19/05/2015 to 17/06/2015,Adults and Communities,Amazon Svcs Europe SAR,26/05/2015,4.98,Other Expenditure - General,Book Stores,GPC
Statement 19/05/2015 to 17/06/2015,Adults and Communities,Amazon Svcs Europe SAR,26/05/2015,3.75,Other Expenditure - General,Book Stores,GPC
Statement 19/05/2015 to 17/06/2015,Adults and Communities,Amazon Svcs Europe SAR,26/05/2015,3.30,Other Expenditure - General,Book Stores,GPC
Statement 19/05/2015 to 17/06/2015,Adults and Communities,Amazon Svcs Europe SAR,13/06/2015,2.77,Other Services - General,Book Stores,GPC
Statement 19/05/2015 to 17/06/2015,Adults and Communities,Amazon Svcs Europe SAR,16/06/2015,5.95,Other Services - General,Book Stores,GPC
Statement 19/05/2015 to 17/06/2015,Adults and Communities,Amazon Svcs Europe SAR,29/05/2015,11.75,Stationery - General,Book Stores,GPC
Statement 19/05/2015 to 17/06/2015,Adults and Communities,Amazon UK Marketplace,04/06/2015,28.98,Books - General,Book Stores,GPC
Statement 19/05/2015 to 17/06/2015,Adults and Communities,Amazon UK Marketplace,27/05/2015,19.00,Display/Conservn/Exhibitions - Displays/Field Research,Miscellaneous and Specialty Retail Stores,GPC
Statement 19/05/2015 to 17/06/2015,Adults and Communities,Amazon UK Marketplace,16/06/2015,3.58,Display/Conservn/Exhibitions - General,Book Stores,GPC
Statement 19/05/2015 to 17/06/2015,Adults and Communities,Amazon UK Marketplace,16/06/2015,1.53,Display/Conservn/Exhibitions - General,Book Stores,GPC
Statement 19/05/2015 to 17/06/2015,Adults and Communities,Amazon UK Marketplace,26/05/2015,8.40,Materials - General,Miscellaneous and Specialty Retail Stores,GPC
Statement 19/05/2015 to 17/06/2015,Adults and Communities,Amazon UK Marketplace,27/05/2015,2.99,Materials - General,Miscellaneous and Specialty Retail Stores,GPC
Statement 19/05/2015 to 17/06/2015,Adults and Communities,Amazon UK Marketplace,15/06/2015,34.84,Materials - General,Miscellaneous and Specialty Retail Stores,GPC
Statement 19/05/2015 to 17/06/2015,Adults and Communities,Amazon UK Marketplace,16/06/2015,16.94,Materials - General,Miscellaneous and Specialty Retail Stores,GPC
Statement 19/05/2015 to 17/06/2015,Adults and Communities,Amazon UK Retail,21/05/2015,9.57,Materials - General,Direct Marketers - Other,GPC
Statement 19/05/2015 to 17/06/2015,Adults and Communities,Amazon UK Retail,26/05/2015,-0.01,Materials - General,Direct Marketers - Other,GPC
Statement 19/05/2015 to 17/06/2015,Adults and Communities,Amazon UK Retail,06/06/2015,9.57,Materials - General,Direct Marketers - Other,GPC
Statement 19/05/2015 to 17/06/2015,Adults and Communities,Amazon UK Retail,09/06/2015,-0.01,Materials - General,Direct Marketers - Other,GPC
Statement 19/05/2015 to 17/06/2015,Adults and Communities,Amazon UK Retail,10/06/2015,10.74,Materials - General,Direct Marketers - Other,GPC
Statement 19/05/2015 to 17/06/2015,Adults and Communities,Amazon UK Retail,10/06/2015,8.33,Materials - General,Direct Marketers - Other,GPC
Statement 19/05/2015 to 17/06/2015,Adults and Communities,Amazon UK Retail,20/05/2015,14.32,Other Expenditure - General,Direct Marketers - Other,GPC
Statement 19/05/2015 to 17/06/2015,Adults and Communities,Amazon UK Retail,22/05/2015,5.24,Other Expenditure - General,Direct Marketers - Other,GPC
Statement 19/05/2015 to 17/06/2015,Adults and Communities,Amazon UK Retail,04/06/2015,13.99,Other Expenditure - General,Direct Marketers - Other,GPC
Statement 19/05/2015 to 17/06/2015,Adults and Communities,Amazon UK Retail,11/06/2015,14.53,Other Expenditure - General,Direct Marketers - Other,GPC
Statement 19/05/2015 to 17/06/2015,Adults and Communities,Amazon UK Retail,13/06/2015,66.15,Other Services - General,Direct Marketers - Other,GPC
Statement 19/05/2015 to 17/06/2015,Adults and Communities,ARGOS LTD,09/06/2015,56.99,Materials - General,Discount Stores,GPC
Statement 19/05/2015 to 17/06/2015,Adults and Communities,ASDA STORES 4477,23/05/2015,20.00,Materials - General,"Grocery Stores, Supermarkets",GPC
Statement 19/05/2015 to 17/06/2015,Adults and Communities,ASDA STORES 4477,27/05/2015,3.37,Materials - General,"Grocery Stores, Supermarkets",GPC
Statement 19/05/2015 to 17/06/2015,Adults and Communities,ASDA STORES 4477,28/05/2015,7.00,Materials - General,"Grocery Stores, Supermarkets",GPC
Statement 19/05/2015 to 17/06/2015,Adults and Communities,ASDA SUPERSTORE,31/05/2015,23.18,Materials - General,"Grocery Stores, Supermarkets",GPC
Statement 19/05/2015 to 17/06/2015,Adults and Communities,AUSDEN CLARK LTD,21/05/2015,204.00,Other Services - General,Automotive Repair Shops (non-dealer),GPC
Statement 19/05/2015 to 17/06/2015,Adults and Communities,AUSDEN CLARK LTD,16/06/2015,204.00,Other Services - General,Automotive Repair Shops (non-dealer),GPC
Statement 19/05/2015 to 17/06/2015,Adults and Communities,B & Q,19/05/2015,48.94,Aids & Adaptations - Minor Adaptations,"Building Materials, Lumber Stores",GPC
Statement 19/05/2015 to 17/06/2015,Adults and Communities,B & Q,03/06/2015,16.44,Aids & Adaptations - Minor Adaptations,"Building Materials, Lumber Stores",GPC
Statement 19/05/2015 to 17/06/2015,Adults and Communities,B & Q,12/06/2015,31.21,Aids & Adaptations - Minor Adaptations,"Building Materials, Lumber Stores",GPC
Statement 19/05/2015 to 17/06/2015,Adults and Communities,B & Q,03/06/2015,48.52,Operational Equipment - General,"Building Materials, Lumber Stores",GPC
Statement 19/05/2015 to 17/06/2015,Adults and Communities,B & Q,03/06/2015,3.34,R & M of Buildings - General,"Building Materials, Lumber Stores",GPC
Statement 19/05/2015 to 17/06/2015,Adults and Communities,B & Q,09/06/2015,33.58,R & M of Buildings - General,"Building Materials, Lumber Stores",GPC
Statement 19/05/2015 to 17/06/2015,Adults and Communities,B & Q,09/06/2015,-9.50,R & M of Buildings - General,"Building Materials, Lumber Stores",GPC
Statement 19/05/2015 to 17/06/2015,Adults and Communities,B & Q,09/06/2015,2.97,R & M of Buildings - General,"Building Materials, Lumber Stores",GPC
Statement 19/05/2015 to 17/06/2015,Adults and Communities,B & Q,12/06/2015,51.00,R & M of Buildings - General,"Building Materials, Lumber Stores",GPC
Statement 19/05/2015 to 17/06/2015,Adults and Communities,B&M RETAIL LTD,07/06/2015,3.98,Other Expenditure - General,Discount Stores,GPC
Statement 19/05/2015 to 17/06/2015,Adults and Communities,B&Q,19/05/2015,35.65,Aids & Adaptations - Minor Adaptations,"Building Materials, Lumber Stores",GPC
Statement 19/05/2015 to 17/06/2015,Adults and Communities,BELTON WOODS,01/06/2015,9.15,Display/Conservn/Exhibitions - Conservation,"Lodging-Hotels, Motels, Resorts",GPC
Statement 19/05/2015 to 17/06/2015,Adults and Communities,BELTON WOODS,01/06/2015,21.80,Display/Conservn/Exhibitions - Conservation,"Lodging-Hotels, Motels, Resorts",GPC
Statement 19/05/2015 to 17/06/2015,Adults and Communities,BELTON WOODS,01/06/2015,16.35,Display/Conservn/Exhibitions - Conservation,"Lodging-Hotels, Motels, Resorts",GPC
Statement 19/05/2015 to 17/06/2015,Adults and Communities,BLAKEMORE/TATES LIMITE,16/06/2015,4.00,Materials - General,"Grocery Stores, Supermarkets",GPC
Statement 19/05/2015 to 17/06/2015,Adults and Communities,BOC TEL ORDER,10/06/2015,4.74,Operational Equipment - General,Chemicals and Allied Products Not Elsewhere Classi,GPC
Statement 19/05/2015 to 17/06/2015,Adults and Communities,BRCS INDEPENDENT LIVIN,21/05/2015,22.98,Operational Equipment - General,Charitable and Social Service Organizations,GPC
Statement 19/05/2015 to 17/06/2015,Adults and Communities,CENTRAL ENG COOP,24/05/2015,6.96,Provisions - General,Department Stores,GPC
Statement 19/05/2015 to 17/06/2015,Adults and Communities,CENTRAL ENG COOP,26/05/2015,43.09,Provisions - General,Department Stores,GPC
Statement 19/05/2015 to 17/06/2015,Adults and Communities,CENTRAL ENG COOP,27/05/2015,72.11,Provisions - General,Department Stores,GPC
Statement 19/05/2015 to 17/06/2015,Adults and Communities,CENTRAL ENG COOP,27/05/2015,5.10,Provisions - General,Department Stores,GPC
Statement 19/05/2015 to 17/06/2015,Adults and Communities,CENTRAL ENG COOP,27/05/2015,19.02,Provisions - General,Department Stores,GPC
Statement 19/05/2015 to 17/06/2015,Adults and Communities,CENTRAL ENG COOP,27/05/2015,21.19,Provisions - General,Department Stores,GPC
Statement 19/05/2015 to 17/06/2015,Adults and Communities,CENTRAL ENG COOP,28/05/2015,52.39,Provisions - General,Department Stores,GPC
Statement 19/05/2015 to 17/06/2015,Adults and Communities,CENTRAL ENG COOP,05/06/2015,56.05,Provisions - General,Department Stores,GPC
Statement 19/05/2015 to 17/06/2015,Adults and Communities,CENTRAL ENG COOP,06/06/2015,28.70,Provisions - General,Department Stores,GPC
Statement 19/05/2015 to 17/06/2015,Adults and Communities,CENTRAL ENG COOP,06/06/2015,8.95,Provisions - General,Department Stores,GPC
Statement 19/05/2015 to 17/06/2015,Adults and Communities,CENTRAL ENG COOP,15/06/2015,14.05,Provisions - General,Department Stores,GPC
Statement 19/05/2015 to 17/06/2015,Adults and Communities,CHARNWOOD ARMS,13/06/2015,39.98,Provisions - General,"Drinking Places (Alcoholic Beverages)-Bars, Tavern",GPC
Statement 19/05/2015 to 17/06/2015,Adults and Communities,CHARNWOOD BOROUGH COUNCI,04/06/2015,6.00,Casual/Essential - General,Automobile Parking Lots and Garages,GPC
Statement 19/05/2015 to 17/06/2015,Adults and Communities,CHURCHILL CATERING LTD,22/05/2015,10.10,Subsistence - General,Fast-Food Restaurants (Quick Payment Service Pilot,GPC
Statement 19/05/2015 to 17/06/2015,Adults and Communities,COALVILLE DECORATOR CE,03/06/2015,8.99,General Equipment - General,"Glass, Paint, Wallpaper Stores",GPC
Statement 19/05/2015 to 17/06/2015,Adults and Communities,COSTA COFFEE,20/05/2015,5.46,Client/Volunteers - General,"Eating Places, Restaurants",GPC
Statement 19/05/2015 to 17/06/2015,Adults and Communities,COUTURE - NOTTINGH,10/06/2015,6.30,Display/Conservn/Exhibitions - Conservation,Caterers,GPC
Statement 19/05/2015 to 17/06/2015,Adults and Communities,CROSS COUNTRY,29/05/2015,100.30,Public Transport -  Staff - General,Passenger Railways,GPC
Statement 19/05/2015 to 17/06/2015,Adults and Communities,CURRYS ONLINE,22/05/2015,3.99,Materials - General,"RADIO, TELEVISION, AND STEREO STORES (ELECTRONIC STORES)",GPC
Statement 19/05/2015 to 17/06/2015,Adults and Communities,CURRYS ONLINE,12/06/2015,359.99,Personal Needs of Clients - General,"RADIO, TELEVISION, AND STEREO STORES (ELECTRONIC STORES)",GPC
Statement 19/05/2015 to 17/06/2015,Adults and Communities,DUNELM (SOFT FURNISHIN,09/06/2015,79.83,General Equipment - General,"Drapery, Window Coverings, and Upholstery Stores",GPC
Statement 19/05/2015 to 17/06/2015,Adults and Communities,DUNELM (SOFT FURNISHIN,09/06/2015,9.99,General Equipment - General,"Drapery, Window Coverings, and Upholstery Stores",GPC
Statement 19/05/2015 to 17/06/2015,Adults and Communities,E COAST MAIN LN CO LTD,03/06/2015,6.00,Public Transport -  Staff - General,Automobile Parking Lots and Garages,GPC
Statement 19/05/2015 to 17/06/2015,Adults and Communities,EAST MIDLANDS TRAI,16/06/2015,80.70,Public Transport -  Staff - General,Passenger Railways,GPC
Statement 19/05/2015 to 17/06/2015,Adults and Communities,EASTMIDLANDSTRAINS,08/06/2015,18.90,Casual/Essential - General,Passenger Railways,GPC
Statement 19/05/2015 to 17/06/2015,Adults and Communities,EASTMIDLANDSTRAINS,11/06/2015,120.50,Casual/Essential - General,Passenger Railways,GPC
Statement 19/05/2015 to 17/06/2015,Adults and Communities,EASTMIDLANDSTRAINS,22/05/2015,49.40,Other Expenditure - General,Passenger Railways,GPC
Statement 19/05/2015 to 17/06/2015,Adults and Communities,EASTMIDLANDSTRAINS,21/05/2015,52.95,Public Transport -  Staff - General,Passenger Railways,GPC
Statement 19/05/2015 to 17/06/2015,Adults and Communities,EASTMIDLANDSTRAINS,12/06/2015,200.30,Public Transport -  Staff - General,Passenger Railways,GPC
Statement 19/05/2015 to 17/06/2015,Adults and Communities,FCC CONNECT,03/06/2015,6.20,Casual/Essential - General,Automobile Parking Lots and Garages,GPC
Statement 19/05/2015 to 17/06/2015,Adults and Communities,FLETCHERGATE CARPARK,10/06/2015,5.34,Public Transport -  Staff - General,Automobile Parking Lots and Garages,GPC
Statement 19/05/2015 to 17/06/2015,Adults and Communities,FOREIGN EXCHANGE FEE,08/06/2015,1.79,Schools Agency staff - Teaching Staff,Misc-Unknown,GPC
Statement 19/05/2015 to 17/06/2015,Adults and Communities,GTR WEB RAIL SALES,01/06/2015,26.50,Casual/Essential - General,Passenger Railways,GPC
Statement 19/05/2015 to 17/06/2015,Adults and Communities,HANDSET SOLUTIONS,11/06/2015,130.56,Operational Equipment - DDA,Telecommunication Equipment Including Telephone Sa,GPC
Statement 19/05/2015 to 17/06/2015,Adults and Communities,HARLOW BROS LTD,11/06/2015,62.74,Aids & Adaptations - Minor Adaptations,"Building Materials, Lumber Stores",GPC
Statement 19/05/2015 to 17/06/2015,Adults and Communities,HARLOW BROS LTD,11/06/2015,80.00,Aids & Adaptations - Minor Adaptations,"Building Materials, Lumber Stores",GPC
Statement 19/05/2015 to 17/06/2015,Adults and Communities,HAWGRIP NURSERIES,03/06/2015,39.10,Materials - General,"Lawn and Garden Supply Stores, Nurseries",GPC
Statement 19/05/2015 to 17/06/2015,Adults and Communities,HEREFORD MAP CENTRE,02/06/2015,27.99,Materials - General,"Stationary, Office Supplies, Printing and Writing",GPC
Statement 19/05/2015 to 17/06/2015,Adults and Communities,HOTEL DU VIN BRIST,16/06/2015,44.00,Display/Conservn/Exhibitions - Conservation,"Lodging-Hotels, Motels, Resorts",GPC
Statement 19/05/2015 to 17/06/2015,Adults and Communities,ICELAND,05/06/2015,17.15,Provisions - General,"Grocery Stores, Supermarkets",GPC
Statement 19/05/2015 to 17/06/2015,Adults and Communities,ICELAND,05/06/2015,10.00,Provisions - General,"Grocery Stores, Supermarkets",GPC
Statement 19/05/2015 to 17/06/2015,Adults and Communities,ICELAND,06/06/2015,6.10,Provisions - General,"Grocery Stores, Supermarkets",GPC
Statement 19/05/2015 to 17/06/2015,Adults and Communities,ICELAND,09/06/2015,5.00,Provisions - General,"Grocery Stores, Supermarkets",GPC
Statement 19/05/2015 to 17/06/2015,Adults and Communities,IKEA ONLINE,22/05/2015,77.50,Operational Equipment - General,Miscellaneous House Furnishing Specialty Shops,GPC
Statement 19/05/2015 to 17/06/2015,Adults and Communities,JOHNSTONES DECORATING,28/05/2015,60.00,Aids & Adaptations - Minor Adaptations,"Glass, Paint, Wallpaper Stores",GPC
Statement 19/05/2015 to 17/06/2015,Adults and Communities,LEIC CITY COUNCIL,06/06/2015,1.28,Client/Volunteers - General,Government Services-Not Elsewhere Classified,GPC
Statement 19/05/2015 to 17/06/2015,Adults and Communities,LEIC CITY COUNCIL,06/06/2015,3.76,Client/Volunteers - General,Government Services-Not Elsewhere Classified,GPC
Statement 19/05/2015 to 17/06/2015,Adults and Communities,MAX SPIELMANN LTD,02/06/2015,35.08,General Equipment - General,Photographic Studios,GPC
Statement 19/05/2015 to 17/06/2015,Adults and Communities,MAX SPIELMANN LTD,05/06/2015,3.00,General Equipment - General,Photographic Studios,GPC
Statement 19/05/2015 to 17/06/2015,Adults and Communities,MAX SPIELMANN LTD,01/06/2015,7.99,Provisions - General,Photographic Studios,GPC
Statement 19/05/2015 to 17/06/2015,Adults and Communities,MERCURY NEWS 63917/453,09/06/2015,115.99,Materials - General,"Grocery Stores, Supermarkets",GPC
Statement 19/05/2015 to 17/06/2015,Adults and Communities,MERCURY NEWS 63933,03/06/2015,57.50,Newspapers & Periodicals - General,"Grocery Stores, Supermarkets",GPC
Statement 19/05/2015 to 17/06/2015,Adults and Communities,MORGANS LOCKSMITHS,03/06/2015,8.44,Aids & Adaptations - Minor Adaptations,"Shoe Repair Shops, Shoe Shine Parlors, Hat Cleanin",GPC
Statement 19/05/2015 to 17/06/2015,Adults and Communities,NCP LIMITED,03/06/2015,3.40,Casual/Essential - General,Automobile Parking Lots and Garages,GPC
Statement 19/05/2015 to 17/06/2015,Adults and Communities,NCP LIMITED,15/06/2015,3.90,Public Transport -  Staff - General,Automobile Parking Lots and Garages,GPC
Statement 19/05/2015 to 17/06/2015,Adults and Communities,OCADO RETAIL LIMIT,18/05/2015,140.81,Provisions - General,"Miscellaneous Food Stores-Convenience Stores, Mark",GPC
Statement 19/05/2015 to 17/06/2015,Adults and Communities,OCADO RETAIL LIMIT,21/05/2015,75.26,Provisions - General,"Miscellaneous Food Stores-Convenience Stores, Mark",GPC
Statement 19/05/2015 to 17/06/2015,Adults and Communities,OCADO RETAIL LIMIT,25/05/2015,102.46,Provisions - General,"Miscellaneous Food Stores-Convenience Stores, Mark",GPC
Statement 19/05/2015 to 17/06/2015,Adults and Communities,OCADO RETAIL LIMIT,29/05/2015,71.79,Provisions - General,"Miscellaneous Food Stores-Convenience Stores, Mark",GPC
Statement 19/05/2015 to 17/06/2015,Adults and Communities,OCADO RETAIL LIMIT,02/06/2015,73.30,Provisions - General,"Miscellaneous Food Stores-Convenience Stores, Mark",GPC
Statement 19/05/2015 to 17/06/2015,Adults and Communities,OCADO RETAIL LIMIT,05/06/2015,77.39,Provisions - General,"Miscellaneous Food Stores-Convenience Stores, Mark",GPC
Statement 19/05/2015 to 17/06/2015,Adults and Communities,OCADO RETAIL LIMIT,08/06/2015,231.84,Provisions - General,"Miscellaneous Food Stores-Convenience Stores, Mark",GPC
Statement 19/05/2015 to 17/06/2015,Adults and Communities,OCADO RETAIL LIMIT,11/06/2015,88.15,Provisions - General,"Miscellaneous Food Stores-Convenience Stores, Mark",GPC
Statement 19/05/2015 to 17/06/2015,Adults and Communities,OCADO RETAIL LIMIT,15/06/2015,112.67,Provisions - General,"Miscellaneous Food Stores-Convenience Stores, Mark",GPC
Statement 19/05/2015 to 17/06/2015,Adults and Communities,PAYPAL  ANTHONYPENN,20/05/2015,9.95,Display/Conservn/Exhibitions - General,Miscellaneous and Specialty Retail Stores,GPC
Statement 19/05/2015 to 17/06/2015,Adults and Communities,PAYPAL  ASHOP888,15/06/2015,1.59,Display/Conservn/Exhibitions - General,Miscellaneous Apparel and Accessory Stores,GPC
Statement 19/05/2015 to 17/06/2015,Adults and Communities,PAYPAL  BROOKFIELD7,20/05/2015,9.45,Materials - General,Sporting Goods Stores,GPC
Statement 19/05/2015 to 17/06/2015,Adults and Communities,PAYPAL  BUKSTERUKLI,15/06/2015,5.78,Display/Conservn/Exhibitions - General,Chemicals and Allied Products Not Elsewhere Classi,GPC
Statement 19/05/2015 to 17/06/2015,Adults and Communities,PAYPAL  CULTURE24,21/05/2015,206.30,Other Services - General,Charitable and Social Service Organizations,GPC
Statement 19/05/2015 to 17/06/2015,Adults and Communities,PAYPAL  FASTKEYSERV,20/05/2015,24.42,General Equipment - General,Advertising Services,GPC
Statement 19/05/2015 to 17/06/2015,Adults and Communities,PAYPAL  FASTKEYSERV,26/05/2015,6.74,General Equipment - General,Advertising Services,GPC
Statement 19/05/2015 to 17/06/2015,Adults and Communities,PAYPAL  FASTKEYSERV,28/05/2015,24.42,General Equipment - General,Advertising Services,GPC
Statement 19/05/2015 to 17/06/2015,Adults and Communities,PAYPAL  FYVIESTARFA,19/05/2015,20.97,Materials - General,Children's and Infants' Wear Stores,GPC
Statement 19/05/2015 to 17/06/2015,Adults and Communities,PAYPAL  GETSUGOIN,15/06/2015,3.99,Display/Conservn/Exhibitions - General,Chemicals and Allied Products Not Elsewhere Classi,GPC
Statement 19/05/2015 to 17/06/2015,Adults and Communities,PAYPAL  H4MZ4KH4LID,18/05/2015,7.79,Materials - General,Miscellaneous and Specialty Retail Stores,GPC
Statement 19/05/2015 to 17/06/2015,Adults and Communities,PAYPAL  JEWEL MANIA,26/05/2015,9.95,Other Expenditure - General,Miscellaneous and Specialty Retail Stores,GPC
Statement 19/05/2015 to 17/06/2015,Adults and Communities,PAYPAL  READREADING,05/06/2015,85.00,Books - General,Charitable and Social Service Organizations,GPC
Statement 19/05/2015 to 17/06/2015,Adults and Communities,PAYPAL  SALEALL2100,15/06/2015,5.22,Display/Conservn/Exhibitions - General,Miscellaneous Apparel and Accessory Stores,GPC
Statement 19/05/2015 to 17/06/2015,Adults and Communities,PAYPAL  STEVELJSY,18/05/2015,2.20,Materials - General,Miscellaneous and Specialty Retail Stores,GPC
Statement 19/05/2015 to 17/06/2015,Adults and Communities,PAYPAL  UKOFFICEDIR,04/06/2015,80.91,Stationery - General,"Stationery, Office, and School Supply Stores",GPC
Statement 19/05/2015 to 17/06/2015,Adults and Communities,PAYPAL  ZAHREEN10,15/06/2015,9.46,Display/Conservn/Exhibitions - General,Miscellaneous Apparel and Accessory Stores,GPC
Statement 19/05/2015 to 17/06/2015,Adults and Communities,PONDEN HOME,01/06/2015,19.20,Furniture - General,Miscellaneous House Furnishing Specialty Shops,GPC
Statement 19/05/2015 to 17/06/2015,Adults and Communities,POST OFFICE COUNTER,27/05/2015,39.60,Fees & Charges - Retail,Postage Stamps,GPC
Statement 19/05/2015 to 17/06/2015,Adults and Communities,POST OFFICE COUNTER,18/05/2015,37.80,Postal Services - General,Postage Stamps,GPC
Statement 19/05/2015 to 17/06/2015,Adults and Communities,POST OFFICE COUNTER,19/05/2015,6.45,Postal Services - General,Postage Stamps,GPC
Statement 19/05/2015 to 17/06/2015,Adults and Communities,POST OFFICE COUNTER,21/05/2015,63.00,Postal Services - General,Postage Stamps,GPC
Statement 19/05/2015 to 17/06/2015,Adults and Communities,POST OFFICE COUNTER,01/06/2015,22.68,Postal Services - General,Postage Stamps,GPC
Statement 19/05/2015 to 17/06/2015,Adults and Communities,POST OFFICE COUNTER,01/06/2015,7.56,Postal Services - General,Postage Stamps,GPC
Statement 19/05/2015 to 17/06/2015,Adults and Communities,POST OFFICE COUNTER,04/06/2015,15.12,Postal Services - General,Postage Stamps,GPC
Statement 19/05/2015 to 17/06/2015,Adults and Communities,POST OFFICE COUNTER,10/06/2015,63.00,Postal Services - General,Postage Stamps,GPC
Statement 19/05/2015 to 17/06/2015,Adults and Communities,POST OFFICE SHOP,09/06/2015,109.66,Postal Services - General,Postage Stamps,GPC
Statement 19/05/2015 to 17/06/2015,Adults and Communities,POUNDWORLD RETAIL,02/06/2015,5.00,Materials - General,Discount Stores,GPC
Statement 19/05/2015 to 17/06/2015,Adults and Communities,PREMIER INN44015485,20/05/2015,125.50,Consultants & Specialists - General,PREMIER TRAVEL,GPC
Statement 19/05/2015 to 17/06/2015,Adults and Communities,PREMIER INN44529750,28/05/2015,187.00,Subsistence - General,PREMIER TRAVEL,GPC
Statement 19/05/2015 to 17/06/2015,Adults and Communities,Q PARK TALBOT STREET,10/06/2015,23.33,Public Transport -  Staff - General,Automobile Parking Lots and Garages,GPC
Statement 19/05/2015 to 17/06/2015,Adults and Communities,ROYAL MAIL,03/06/2015,54.00,Postal Services - General,Postage Stamps,GPC
Statement 19/05/2015 to 17/06/2015,Adults and Communities,RYMAN,20/05/2015,11.97,Stationery - General,"Stationery, Office, and School Supply Stores",GPC
Statement 19/05/2015 to 17/06/2015,Adults and Communities,SAINSBURYS LOCAL,18/05/2015,1.10,Materials - General,"Grocery Stores, Supermarkets",GPC
Statement 19/05/2015 to 17/06/2015,Adults and Communities,SAINSBURYS LOCAL,21/05/2015,7.00,Materials - General,"Grocery Stores, Supermarkets",GPC
Statement 19/05/2015 to 17/06/2015,Adults and Communities,SAINSBURYS LOCAL,31/05/2015,24.40,Materials - General,"Grocery Stores, Supermarkets",GPC
Statement 19/05/2015 to 17/06/2015,Adults and Communities,SAINSBURYS LOCAL,11/06/2015,4.50,Materials - General,"Grocery Stores, Supermarkets",GPC
Statement 19/05/2015 to 17/06/2015,Adults and Communities,SAINSBURYS LOCAL,11/06/2015,2.91,Provisions - General,"Grocery Stores, Supermarkets",GPC
Statement 19/05/2015 to 17/06/2015,Adults and Communities,Sainsburys S/mkts,29/05/2015,10.79,Aids & Adaptations - Minor Adaptations,"Grocery Stores, Supermarkets",GPC
Statement 19/05/2015 to 17/06/2015,Adults and Communities,Sainsburys S/mkts,03/06/2015,4.80,Aids & Adaptations - Minor Adaptations,"Grocery Stores, Supermarkets",GPC
Statement 19/05/2015 to 17/06/2015,Adults and Communities,SAINSBURYS S/MKTS,03/06/2015,2.76,Operational Equipment - General,"Grocery Stores, Supermarkets",GPC
Statement 19/05/2015 to 17/06/2015,Adults and Communities,SAINSBURYS S/MKTS,11/06/2015,17.90,Operational Equipment - General,"Grocery Stores, Supermarkets",GPC
Statement 19/05/2015 to 17/06/2015,Adults and Communities,SAINSBURYS S/MKTS,25/05/2015,0.90,Provisions - General,"Grocery Stores, Supermarkets",GPC
Statement 19/05/2015 to 17/06/2015,Adults and Communities,SAM INTERNATIONAL,04/06/2015,46.90,Stationery - General,"Stationary, Office Supplies, Printing and Writing",GPC
Statement 19/05/2015 to 17/06/2015,Adults and Communities,SCREWFIX,19/05/2015,11.66,Display/Conservn/Exhibitions - Conservation,"Building Materials, Lumber Stores",GPC
Statement 19/05/2015 to 17/06/2015,Adults and Communities,SCREWFIX,01/06/2015,32.50,R&M of Vehicles-Non Contract - General,"Building Materials, Lumber Stores",GPC
Statement 19/05/2015 to 17/06/2015,Adults and Communities,SCREWFIX DIRECT,18/05/2015,25.64,Aids & Adaptations - Minor Adaptations,"Building Materials, Lumber Stores",GPC
Statement 19/05/2015 to 17/06/2015,Adults and Communities,SELECT PUBLISHER LTD,12/06/2015,25.00,Books - General,Miscellaneous Publishing and  Printing,GPC
Statement 19/05/2015 to 17/06/2015,Adults and Communities,SHOE ZONE,18/05/2015,7.92,Display/Conservn/Exhibitions - Conservation,Shoe Stores,GPC
Statement 19/05/2015 to 17/06/2015,Adults and Communities,SNIBSTON DISCOVERY PAR,01/06/2015,9.10,Public Transport -  Staff - General,Tourist Attractions and Exhibits,GPC
Statement 19/05/2015 to 17/06/2015,Adults and Communities,SUNNYSIDE GARDEN CENTRE,01/06/2015,23.38,General Equipment - General,"Florists Supplies, Nursery Stock, and Flowers",GPC
Statement 19/05/2015 to 17/06/2015,Adults and Communities,SUNNYSIDE GARDEN CENTRE,06/06/2015,34.10,Provisions - General,"Florists Supplies, Nursery Stock, and Flowers",GPC
Statement 19/05/2015 to 17/06/2015,Adults and Communities,SURVEYMONKEYCOM/HELP,12/06/2015,21.67,Publicity/Marketing - General,Continuity/Subscription Merchants,GPC
Statement 19/05/2015 to 17/06/2015,Adults and Communities,T K MAXX,19/05/2015,2.99,Materials - General,Variety Stores,GPC
Statement 19/05/2015 to 17/06/2015,Adults and Communities,TESCO STORE 2846,03/06/2015,55.00,Materials - General,"Grocery Stores, Supermarkets",GPC
Statement 19/05/2015 to 17/06/2015,Adults and Communities,TESCO STORES 5182,18/05/2015,187.17,Provisions - General,"Grocery Stores, Supermarkets",GPC
Statement 19/05/2015 to 17/06/2015,Adults and Communities,TESCO STORES 5182,22/05/2015,116.46,Provisions - General,"Grocery Stores, Supermarkets",GPC
Statement 19/05/2015 to 17/06/2015,Adults and Communities,TESCO STORES 5182,25/05/2015,196.07,Provisions - General,"Grocery Stores, Supermarkets",GPC
Statement 19/05/2015 to 17/06/2015,Adults and Communities,TESCO STORES 5182,28/05/2015,175.73,Provisions - General,"Grocery Stores, Supermarkets",GPC
Statement 19/05/2015 to 17/06/2015,Adults and Communities,TESCO STORES 5182,01/06/2015,166.54,Provisions - General,"Grocery Stores, Supermarkets",GPC
Statement 19/05/2015 to 17/06/2015,Adults and Communities,TESCO STORES 5182,05/06/2015,156.72,Provisions - General,"Grocery Stores, Supermarkets",GPC
Statement 19/05/2015 to 17/06/2015,Adults and Communities,TESCO STORES 5182,08/06/2015,140.53,Provisions - General,"Grocery Stores, Supermarkets",GPC
Statement 19/05/2015 to 17/06/2015,Adults and Communities,TESCO STORES 5182,11/06/2015,127.65,Provisions - General,"Grocery Stores, Supermarkets",GPC
Statement 19/05/2015 to 17/06/2015,Adults and Communities,TESCO STORES 5182,15/06/2015,110.86,Provisions - General,"Grocery Stores, Supermarkets",GPC
Statement 19/05/2015 to 17/06/2015,Adults and Communities,TESCO STORES-2044,27/05/2015,22.22,Materials - General,"Grocery Stores, Supermarkets",GPC
Statement 19/05/2015 to 17/06/2015,Adults and Communities,TESCO STORES-2044,02/06/2015,8.00,Schools Agency staff - Support Staff,"Grocery Stores, Supermarkets",GPC
Statement 19/05/2015 to 17/06/2015,Adults and Communities,THE EXCHANGE,19/05/2015,5.60,Subsistence - General,"Eating Places, Restaurants",GPC
Statement 19/05/2015 to 17/06/2015,Adults and Communities,THE TRAINLINE.COM,20/05/2015,53.65,Public Transport -  Staff - General,Passenger Railways,GPC
Statement 19/05/2015 to 17/06/2015,Adults and Communities,THE TRAINLINE.COM,22/05/2015,45.90,Public Transport -  Staff - General,Passenger Railways,GPC
Statement 19/05/2015 to 17/06/2015,Adults and Communities,TP COALVILLE,20/05/2015,23.84,Aids & Adaptations - Minor Adaptations,"Building Materials, Lumber Stores",GPC
Statement 19/05/2015 to 17/06/2015,Adults and Communities,TRAINLINE.COM,19/05/2015,62.73,Casual/Essential - General,Passenger Railways,GPC
Statement 19/05/2015 to 17/06/2015,Adults and Communities,TRAINLINE.COM,30/05/2015,71.91,Casual/Essential - General,Passenger Railways,GPC
Statement 19/05/2015 to 17/06/2015,Adults and Communities,TRAINLINE.COM,16/06/2015,37.38,Casual/Essential - General,Passenger Railways,GPC
Statement 19/05/2015 to 17/06/2015,Adults and Communities,TRAINLINE.COM,11/06/2015,172.89,Consultants & Specialists - General,Passenger Railways,GPC
Statement 19/05/2015 to 17/06/2015,Adults and Communities,TRAINLINE.COM,21/05/2015,327.93,Public Transport -  Staff - General,Passenger Railways,GPC
Statement 19/05/2015 to 17/06/2015,Adults and Communities,TRAINLINE.COM,29/05/2015,225.93,Subsistence - General,Passenger Railways,GPC
Statement 19/05/2015 to 17/06/2015,Adults and Communities,TVLICENSING.CO.UK,15/06/2015,145.50,General Equipment - General,"Management, Consulting and Public Relations Servic",GPC
Statement 19/05/2015 to 17/06/2015,Adults and Communities,TVLICENSING.CO.UK,30/05/2015,145.50,Schools Agency staff - Teaching Staff,"Management, Consulting and Public Relations Servic",GPC
Statement 19/05/2015 to 17/06/2015,Adults and Communities,UNION METRICS,05/06/2015,65.04,Schools Agency staff - Teaching Staff,Miscellaneous Personal Services-Not Elsewhere Clas,GPC
Statement 19/05/2015 to 17/06/2015,Adults and Communities,UPT - HIGHCROSS LEICESTE,06/06/2015,10.00,Schools Agency staff - Support Staff,Professional Services-Not Elsewhere Classified,GPC
Statement 19/05/2015 to 17/06/2015,Adults and Communities,VIKING,28/05/2015,230.77,Stationery - General,"Stationary, Office Supplies, Printing and Writing",GPC
Statement 19/05/2015 to 17/06/2015,Adults and Communities,VIRGINTRAINSEC PBO STN,03/06/2015,38.60,Public Transport -  Staff - General,Passenger Railways,GPC
Statement 19/05/2015 to 17/06/2015,Adults and Communities,VISTAPR VISTAPRINT.UK,03/06/2015,31.97,Printing - General,Miscellaneous Publishing and  Printing,GPC
Statement 19/05/2015 to 17/06/2015,Adults and Communities,W M MORRISONS CAFE,03/06/2015,4.68,Provisions - General,"Eating Places, Restaurants",GPC
Statement 19/05/2015 to 17/06/2015,Adults and Communities,WATERSTONES,01/06/2015,82.86,Books - General,Book Stores,GPC
Statement 19/05/2015 to 17/06/2015,Adults and Communities,WICKES,12/06/2015,33.48,Aids & Adaptations - Minor Adaptations,Home Supply Warehouse,GPC
Statement 19/05/2015 to 17/06/2015,Adults and Communities,WICKES HINCKLEY,19/05/2015,7.98,R & M of Buildings - General,"Building Materials, Lumber Stores",GPC
Statement 19/05/2015 to 17/06/2015,Adults and Communities,WICKES NUNEATON,27/05/2015,28.97,R & M of Buildings - General,"Building Materials, Lumber Stores",GPC
Statement 19/05/2015 to 17/06/2015,Adults and Communities,WILKO RETAIL LIMIT,18/05/2015,1.50,Display/Conservn/Exhibitions - Conservation,Household Appliance Stores,GPC
Statement 19/05/2015 to 17/06/2015,Adults and Communities,WILKO RETAIL LIMIT,01/06/2015,4.58,Display/Conservn/Exhibitions - Conservation,Household Appliance Stores,GPC
Statement 19/05/2015 to 17/06/2015,Adults and Communities,WILKO RETAIL LIMIT,04/06/2015,9.95,Display/Conservn/Exhibitions - Conservation,Household Appliance Stores,GPC
Statement 19/05/2015 to 17/06/2015,Adults and Communities,WILKO RETAIL LIMIT,01/06/2015,13.95,Furniture - General,Household Appliance Stores,GPC
Statement 19/05/2015 to 17/06/2015,Adults and Communities,WILKO RETAIL LIMIT,10/06/2015,7.40,Materials - General,Household Appliance Stores,GPC
Statement 19/05/2015 to 17/06/2015,Adults and Communities,WILKO RETAIL LIMIT,26/05/2015,6.20,Other Expenditure - General,Household Appliance Stores,GPC
Statement 19/05/2015 to 17/06/2015,Adults and Communities,WILKO RETAIL LIMIT,15/06/2015,25.00,Schools Agency staff - Support Staff,Household Appliance Stores,GPC
Statement 19/05/2015 to 17/06/2015,Adults and Communities,WM MORRISON 054,29/05/2015,4.00,Materials - General,"Grocery Stores, Supermarkets",GPC
Statement 19/05/2015 to 17/06/2015,Adults and Communities,WM MORRISON 054,30/05/2015,75.67,Materials - General,"Grocery Stores, Supermarkets",GPC
Statement 19/05/2015 to 17/06/2015,Adults and Communities,WM MORRISON 054,30/05/2015,8.49,Materials - General,"Grocery Stores, Supermarkets",GPC
Statement 19/05/2015 to 17/06/2015,Adults and Communities,WM MORRISON 054,02/06/2015,47.05,Materials - General,"Grocery Stores, Supermarkets",GPC
Statement 19/05/2015 to 17/06/2015,Adults and Communities,WM MORRISON 054,02/06/2015,32.86,Materials - General,"Grocery Stores, Supermarkets",GPC
Statement 19/05/2015 to 17/06/2015,Adults and Communities,WM MORRISON 054,03/06/2015,15.66,Materials - General,"Grocery Stores, Supermarkets",GPC
Statement 19/05/2015 to 17/06/2015,Adults and Communities,WM MORRISON 054,04/06/2015,31.53,Materials - General,"Grocery Stores, Supermarkets",GPC
Statement 19/05/2015 to 17/06/2015,Adults and Communities,WM MORRISON 054,10/06/2015,27.89,Materials - General,"Grocery Stores, Supermarkets",GPC
Statement 19/05/2015 to 17/06/2015,Adults and Communities,WM MORRISON 054,16/06/2015,8.12,Materials - General,"Grocery Stores, Supermarkets",GPC
Statement 19/05/2015 to 17/06/2015,Adults and Communities,WM MORRISON 054,12/06/2015,10.23,Other Expenditure - General,"Grocery Stores, Supermarkets",GPC
Statement 19/05/2015 to 17/06/2015,Adults and Communities,WM MORRISON 054,21/05/2015,104.24,Provisions - General,"Grocery Stores, Supermarkets",GPC
Statement 19/05/2015 to 17/06/2015,Adults and Communities,WM MORRISON 054,22/05/2015,87.91,Provisions - General,"Grocery Stores, Supermarkets",GPC
Statement 19/05/2015 to 17/06/2015,Adults and Communities,WM MORRISON 054,30/05/2015,164.15,Provisions - General,"Grocery Stores, Supermarkets",GPC
Statement 19/05/2015 to 17/06/2015,Adults and Communities,WM MORRISON 054,01/06/2015,18.00,Provisions - General,"Grocery Stores, Supermarkets",GPC
Statement 19/05/2015 to 17/06/2015,Adults and Communities,WM MORRISON 054,01/06/2015,17.77,Provisions - General,"Grocery Stores, Supermarkets",GPC
Statement 19/05/2015 to 17/06/2015,Adults and Communities,WM MORRISON 054,03/06/2015,63.76,Provisions - General,"Grocery Stores, Supermarkets",GPC
Statement 19/05/2015 to 17/06/2015,Adults and Communities,WM MORRISON 054,03/06/2015,31.47,Provisions - General,"Grocery Stores, Supermarkets",GPC
Statement 19/05/2015 to 17/06/2015,Adults and Communities,WM MORRISON 054,09/06/2015,17.10,Provisions - General,"Grocery Stores, Supermarkets",GPC
Statement 19/05/2015 to 17/06/2015,Adults and Communities,WM MORRISON 054,11/06/2015,68.36,Provisions - General,"Grocery Stores, Supermarkets",GPC
Statement 19/05/2015 to 17/06/2015,Adults and Communities,WM MORRISON 054,12/06/2015,103.30,Provisions - General,"Grocery Stores, Supermarkets",GPC
Statement 19/05/2015 to 17/06/2015,Adults and Communities,WM MORRISONS,03/06/2015,30.00,Materials - General,"Grocery Stores, Supermarkets",GPC
Statement 19/05/2015 to 17/06/2015,Adults and Communities,WM MORRISONS,28/05/2015,9.88,Other Expenditure - General,"Grocery Stores, Supermarkets",GPC
Statement 19/05/2015 to 17/06/2015,Adults and Communities,WM MORRISONS DRY C,20/05/2015,25.00,Display/Conservn/Exhibitions - Conservation,"Grocery Stores, Supermarkets",GPC
Statement 19/05/2015 to 17/06/2015,Adults and Communities,WOODLANDS GARDEN C,02/06/2015,11.67,Grounds Maint-Non Contract - General,"Lawn and Garden Supply Stores, Nurseries",GPC
Statement 19/05/2015 to 17/06/2015,Adults and Communities,WP-ADOPTION UK,26/05/2015,123.00,Other Services - General,Charitable and Social Service Organizations,GPC
Statement 19/05/2015 to 17/06/2015,Adults and Communities,WWW.4CHILDREN2ENJOY.CO,05/06/2015,5.35,Other Services - General,Schools and Educational Services-Not Elsewhere Cla,GPC
Statement 19/05/2015 to 17/06/2015,Adults and Communities,WWW.ABALONEGRAPHICS.CO,03/06/2015,18.95,Stationery - General,Miscellaneous Publishing and  Printing,GPC
Statement 19/05/2015 to 17/06/2015,Adults and Communities,WWW.CORESANDTUBES.,19/05/2015,29.28,Materials - General,Miscellaneous General Merchandise Stores,GPC
Statement 19/05/2015 to 17/06/2015,Adults and Communities,WWW.DVLA.GOV.UK,19/05/2015,227.50,Client/Volunteers - General,Government Services-Not Elsewhere Classified,GPC
Statement 19/05/2015 to 17/06/2015,Adults and Communities,WWW.DVLA.GOV.UK,22/05/2015,227.50,Other Expenditure - General,Government Services-Not Elsewhere Classified,GPC
Statement 19/05/2015 to 17/06/2015,Adults and Communities,WWW.GRAPHICDESIGNSUPPL,22/05/2015,28.94,Stationery - General,"Typesetting, Plate Making, and Related Services",GPC
Statement 19/05/2015 to 17/06/2015,Adults and Communities,WWW.LIGHTBULBS2U.COM,08/06/2015,79.50,Display/Conservn/Exhibitions - Conservation,Household Appliance Stores,GPC
Statement 19/05/2015 to 17/06/2015,Adults and Communities,WWW.LOCKHARTCATERING.C,21/05/2015,1447.34,Contract Cleaning - General,"Cleaning and Maintenance, Janitorial Services",GPC
Statement 19/05/2015 to 17/06/2015,Adults and Communities,WWW.PARTYRAMA.CO.UK,15/06/2015,30.79,Display/Conservn/Exhibitions - General,Miscellaneous and Specialty Retail Stores,GPC
Statement 19/05/2015 to 17/06/2015,Adults and Communities,WWW.POSTURITE.CO.UK,18/05/2015,20.34,Stationery - General,Commercial Furniture,GPC
Statement 19/05/2015 to 17/06/2015,Adults and Communities,WWW.SHOP.CARERSWEEK.OR,21/05/2015,84.74,Training Expenses - General,Schools and Educational Services-Not Elsewhere Cla,GPC
Statement 19/05/2015 to 17/06/2015,Adults and Communities,WWW.STAPLES.CO.UK,19/05/2015,96.36,Stationery - General,"Stationery, Office, and School Supply Stores",GPC
Statement 19/05/2015 to 17/06/2015,Adults and Communities,WWW.THECONSORTIUM/WMS,08/06/2015,26.49,General Equipment - General,Continuity/Subscription Merchants,GPC
Statement 19/05/2015 to 17/06/2015,Adults and Communities,WWW.ZEN.CO.UK,28/05/2015,41.71,Telephones - General,Computer Network/Information Services,GPC
Statement 19/05/2015 to 17/06/2015,C&YPS-Non Delegated,ALDI,01/06/2015,3.02,Materials - General,"Grocery Stores, Supermarkets",GPC
Statement 19/05/2015 to 17/06/2015,C&YPS-Non Delegated,ALDI,20/05/2015,105.88,Provisions - General,"Grocery Stores, Supermarkets",GPC
Statement 19/05/2015 to 17/06/2015,C&YPS-Non Delegated,ALDI,15/06/2015,75.85,Provisions - General,"Grocery Stores, Supermarkets",GPC
Statement 19/05/2015 to 17/06/2015,C&YPS-Non Delegated,ALLPAY.NET VISA AND MAST,21/05/2015,313.84,Schools Agency staff - Teaching Staff,Real Estate Agent and Managers - Rentals,GPC
Statement 19/05/2015 to 17/06/2015,C&YPS-Non Delegated,ALTON TOWERS,28/05/2015,50.40,Personal Needs of Clients - Holidays & Outings,"Amusement Parks, Circuses, Carnivals, Fortune Tell",GPC
Statement 19/05/2015 to 17/06/2015,C&YPS-Non Delegated,Am zon Svcs Europe SAR,04/06/2015,60.00,Materials - General,Book Stores,GPC
Statement 19/05/2015 to 17/06/2015,C&YPS-Non Delegated,Amazon Prime,20/05/2015,-79.00,Other Equipment & Materials - General,Continuity/Subscription Merchants,GPC
Statement 19/05/2015 to 17/06/2015,C&YPS-Non Delegated,Amazon Svcs Europe SAR,16/06/2015,19.98,Books - General,Book Stores,GPC
Statement 19/05/2015 to 17/06/2015,C&YPS-Non Delegated,Amazon Svcs Europe SAR,28/05/2015,13.99,Materials - General,Book Stores,GPC
Statement 19/05/2015 to 17/06/2015,C&YPS-Non Delegated,Amazon Svcs Europe SAR,28/05/2015,77.21,Materials - General,Book Stores,GPC
Statement 19/05/2015 to 17/06/2015,C&YPS-Non Delegated,Amazon Svcs Europe SAR,28/05/2015,33.48,Materials - General,Book Stores,GPC
Statement 19/05/2015 to 17/06/2015,C&YPS-Non Delegated,Amazon Svcs Europe SAR,28/05/2015,18.99,Materials - General,Book Stores,GPC
Statement 19/05/2015 to 17/06/2015,C&YPS-Non Delegated,Amazon Svcs Europe SAR,22/05/2015,19.78,Other Equipment & Materials - General,Book Stores,GPC
Statement 19/05/2015 to 17/06/2015,C&YPS-Non Delegated,Amazon Svcs Europe SAR,26/05/2015,43.02,Other Equipment & Materials - General,Book Stores,GPC
Statement 19/05/2015 to 17/06/2015,C&YPS-Non Delegated,Amazon Svcs Europe SAR,16/06/2015,119.20,Other Equipment & Materials - General,Book Stores,GPC
Statement 19/05/2015 to 17/06/2015,C&YPS-Non Delegated,Amazon Svcs Europe SAR,16/06/2015,59.97,Other Equipment & Materials - General,Book Stores,GPC
Statement 19/05/2015 to 17/06/2015,C&YPS-Non Delegated,Amazon Svcs Europe SAR,28/05/2015,59.95,Stationery - General,Book Stores,GPC
Statement 19/05/2015 to 17/06/2015,C&YPS-Non Delegated,Amazon UK Marketplace,28/05/2015,48.75,Materials - General,Miscellaneous and Specialty Retail Stores,GPC
Statement 19/05/2015 to 17/06/2015,C&YPS-Non Delegated,Amazon UK Marketplace,01/06/2015,1.49,Materials - General,Miscellaneous and Specialty Retail Stores,GPC
Statement 19/05/2015 to 17/06/2015,C&YPS-Non Delegated,Amazon UK Marketplace,09/06/2015,17.62,Other Equipment & Materials - General,Book Stores,GPC
Statement 19/05/2015 to 17/06/2015,C&YPS-Non Delegated,Amazon UK Retail,28/05/2015,14.74,Materials - General,Direct Marketers - Other,GPC
Statement 19/05/2015 to 17/06/2015,C&YPS-Non Delegated,Amazon UK Retail,20/05/2015,95.86,Other Agency & Cont Services - Adoption of Children,Direct Marketers - Other,GPC
Statement 19/05/2015 to 17/06/2015,C&YPS-Non Delegated,Amazon UK Retail,18/05/2015,21.54,Other Equipment & Materials - General,Direct Marketers - Other,GPC
Statement 19/05/2015 to 17/06/2015,C&YPS-Non Delegated,Amazon UK Retail,06/06/2015,26.98,Other Equipment & Materials - General,Direct Marketers - Other,GPC
Statement 19/05/2015 to 17/06/2015,C&YPS-Non Delegated,AMFBOWLING.CO.UK,12/06/2015,52.50,Other Equipment & Materials - General,Bowling Alleys,GPC
Statement 19/05/2015 to 17/06/2015,C&YPS-Non Delegated,AMFBOWLING.CO.UK,26/05/2015,41.60,Public Transport -  Staff - General,"Membership Clubs (Sports, Recreation, Athletic), C",GPC
Statement 19/05/2015 to 17/06/2015,C&YPS-Non Delegated,ANA WIZ LTD,08/06/2015,29.95,Other Transfer Payments - Section 23 Grants,Miscellaneous and Specialty Retail Stores,GPC
Statement 19/05/2015 to 17/06/2015,C&YPS-Non Delegated,ARGOS LTD,01/06/2015,11.99,Materials - General,Discount Stores,GPC
Statement 19/05/2015 to 17/06/2015,C&YPS-Non Delegated,ARTICRAFTS LIMITED,09/06/2015,13.94,Other Equipment & Materials - General,"Stationery, Office, and School Supply Stores",GPC
Statement 19/05/2015 to 17/06/2015,C&YPS-Non Delegated,ASDA STORES,26/05/2015,7.68,Other Equipment & Materials - General,"Grocery Stores, Supermarkets",GPC
Statement 19/05/2015 to 17/06/2015,C&YPS-Non Delegated,ASDA STORES,10/06/2015,44.29,Other Expenditure - General,"Grocery Stores, Supermarkets",GPC
Statement 19/05/2015 to 17/06/2015,C&YPS-Non Delegated,ASDA STORES,01/06/2015,48.42,Provisions - General,"Grocery Stores, Supermarkets",GPC
Statement 19/05/2015 to 17/06/2015,C&YPS-Non Delegated,ASDA STORES 4477,10/06/2015,5.00,Other Equipment & Materials - General,"Grocery Stores, Supermarkets",GPC
Statement 19/05/2015 to 17/06/2015,C&YPS-Non Delegated,ASDA STORES 4533,20/05/2015,21.99,Other Equipment & Materials - General,"Grocery Stores, Supermarkets",GPC
Statement 19/05/2015 to 17/06/2015,C&YPS-Non Delegated,ASDA STORES 4798,19/05/2015,4.97,Subsistence - General,"Grocery Stores, Supermarkets",GPC
Statement 19/05/2015 to 17/06/2015,C&YPS-Non Delegated,ASDA SUPERSTORE,19/05/2015,14.65,Materials - General,"Grocery Stores, Supermarkets",GPC
Statement 19/05/2015 to 17/06/2015,C&YPS-Non Delegated,ASDA SUPERSTORE,08/06/2015,16.30,Materials - General,"Grocery Stores, Supermarkets",GPC
Statement 19/05/2015 to 17/06/2015,C&YPS-Non Delegated,ASDA SUPERSTORE,18/05/2015,200.00,Provisions - General,"Grocery Stores, Supermarkets",GPC
Statement 19/05/2015 to 17/06/2015,C&YPS-Non Delegated,ASDA SUPERSTORE,23/05/2015,125.86,Provisions - General,"Grocery Stores, Supermarkets",GPC
Statement 19/05/2015 to 17/06/2015,C&YPS-Non Delegated,ASDA SUPERSTORE,25/05/2015,167.17,Provisions - General,"Grocery Stores, Supermarkets",GPC
Statement 19/05/2015 to 17/06/2015,C&YPS-Non Delegated,ASDA SUPERSTORE,27/05/2015,57.14,Provisions - General,"Grocery Stores, Supermarkets",GPC
Statement 19/05/2015 to 17/06/2015,C&YPS-Non Delegated,ASDA SUPERSTORE,30/05/2015,84.59,Provisions - General,"Grocery Stores, Supermarkets",GPC
Statement 19/05/2015 to 17/06/2015,C&YPS-Non Delegated,ASDA SUPERSTORE,02/06/2015,206.45,Provisions - General,"Grocery Stores, Supermarkets",GPC
Statement 19/05/2015 to 17/06/2015,C&YPS-Non Delegated,ASDA SUPERSTORE,05/06/2015,127.92,Provisions - General,"Grocery Stores, Supermarkets",GPC
Statement 19/05/2015 to 17/06/2015,C&YPS-Non Delegated,ASDA SUPERSTORE,08/06/2015,168.00,Provisions - General,"Grocery Stores, Supermarkets",GPC
Statement 19/05/2015 to 17/06/2015,C&YPS-Non Delegated,ASDA SUPERSTORE,15/06/2015,173.80,Provisions - General,"Grocery Stores, Supermarkets",GPC
Statement 19/05/2015 to 17/06/2015,C&YPS-Non Delegated,ASDA SUPERSTORE,15/06/2015,43.34,Provisions - General,"Grocery Stores, Supermarkets",GPC
Statement 19/05/2015 to 17/06/2015,C&YPS-Non Delegated,B & Q,21/04/2015,-30.00,General Equipment - General,"Building Materials, Lumber Stores",GPC
Statement 19/05/2015 to 17/06/2015,C&YPS-Non Delegated,B & Q,15/06/2015,11.65,Provisions - General,"Building Materials, Lumber Stores",GPC
Statement 19/05/2015 to 17/06/2015,C&YPS-Non Delegated,B&M Retail,11/06/2015,59.94,General Equipment - General,Discount Stores,GPC
Statement 19/05/2015 to 17/06/2015,C&YPS-Non Delegated,B&M RETAIL LTD,24/05/2015,30.97,General Equipment - General,Discount Stores,GPC
Statement 19/05/2015 to 17/06/2015,C&YPS-Non Delegated,B&M RETAIL LTD,20/05/2015,3.97,Other Equipment & Materials - General,Discount Stores,GPC
Statement 19/05/2015 to 17/06/2015,C&YPS-Non Delegated,B&Q - LONGHBOROUGH,10/06/2015,4.17,Other Equipment & Materials - General,Caterers,GPC
Statement 19/05/2015 to 17/06/2015,C&YPS-Non Delegated,BT BILL PAYMENT 1,22/05/2015,69.89,Telephones - General,Telecommunication Equipment Including Telephone Sa,GPC
Statement 19/05/2015 to 17/06/2015,C&YPS-Non Delegated,BT BILL PAYMENT 1,02/06/2015,75.00,Telephones - General,Telecommunication Equipment Including Telephone Sa,GPC
Statement 19/05/2015 to 17/06/2015,C&YPS-Non Delegated,BT BILL PAYMENT 2,20/05/2015,49.89,R & M of Buildings - General,Telecommunication Equipment Including Telephone Sa,GPC
Statement 19/05/2015 to 17/06/2015,C&YPS-Non Delegated,BT BILL PAYMENT 2,20/05/2015,69.94,R & M of Buildings - General,Telecommunication Equipment Including Telephone Sa,GPC
Statement 19/05/2015 to 17/06/2015,C&YPS-Non Delegated,BT BILL PAYMENT 2,21/05/2015,76.50,R & M of Buildings - General,Telecommunication Equipment Including Telephone Sa,GPC
Statement 19/05/2015 to 17/06/2015,C&YPS-Non Delegated,BT BILL PAYMENT 2,27/05/2015,51.99,R & M of Buildings - General,Telecommunication Equipment Including Telephone Sa,GPC
Statement 19/05/2015 to 17/06/2015,C&YPS-Non Delegated,BT BILL PAYMENT 2,27/05/2015,49.89,R & M of Buildings - General,Telecommunication Equipment Including Telephone Sa,GPC
Statement 19/05/2015 to 17/06/2015,C&YPS-Non Delegated,BT BILL PAYMENT 2,19/05/2015,42.00,Telephones - General,Telecommunication Equipment Including Telephone Sa,GPC
Statement 19/05/2015 to 17/06/2015,C&YPS-Non Delegated,BT BILL PAYMENT 2,21/05/2015,178.33,Telephones - General,Telecommunication Equipment Including Telephone Sa,GPC
Statement 19/05/2015 to 17/06/2015,C&YPS-Non Delegated,BT BILL PAYMENT 2,21/05/2015,93.25,Telephones - General,Telecommunication Equipment Including Telephone Sa,GPC
Statement 19/05/2015 to 17/06/2015,C&YPS-Non Delegated,BT BILL PAYMENT 2,21/05/2015,86.36,Telephones - General,Telecommunication Equipment Including Telephone Sa,GPC
Statement 19/05/2015 to 17/06/2015,C&YPS-Non Delegated,BT BILL PAYMENT 2,27/05/2015,153.05,Telephones - General,Telecommunication Equipment Including Telephone Sa,GPC
Statement 19/05/2015 to 17/06/2015,C&YPS-Non Delegated,BT BILL PAYMENT 2,09/06/2015,72.00,Telephones - General,Telecommunication Equipment Including Telephone Sa,GPC
Statement 19/05/2015 to 17/06/2015,C&YPS-Non Delegated,BT BILL PAYMENT 2,09/06/2015,88.50,Telephones - General,Telecommunication Equipment Including Telephone Sa,GPC
Statement 19/05/2015 to 17/06/2015,C&YPS-Non Delegated,BT PAY BY PHONE,19/05/2015,79.87,Telephones - General,Telecommunication Service Including Local and Long,GPC
Statement 19/05/2015 to 17/06/2015,C&YPS-Non Delegated,BT PAY BY PHONE,22/05/2015,95.40,Telephones - General,Telecommunication Service Including Local and Long,GPC
Statement 19/05/2015 to 17/06/2015,C&YPS-Non Delegated,CARPHONE WAREHOUSE,19/05/2015,19.99,Communications Equipment - General,Telecommunication Equipment Including Telephone Sa,GPC
Statement 19/05/2015 to 17/06/2015,C&YPS-Non Delegated,CENTRAL ENG COOP,26/05/2015,4.32,Cleaning Materials - General,Department Stores,GPC
Statement 19/05/2015 to 17/06/2015,C&YPS-Non Delegated,CENTRAL ENG COOP,20/05/2015,1.79,Materials - General,Department Stores,GPC
Statement 19/05/2015 to 17/06/2015,C&YPS-Non Delegated,CENTRAL ENG COOP,21/05/2015,3.89,Materials - General,Department Stores,GPC
Statement 19/05/2015 to 17/06/2015,C&YPS-Non Delegated,CENTRAL ENG COOP,22/05/2015,4.84,Materials - General,Department Stores,GPC
Statement 19/05/2015 to 17/06/2015,C&YPS-Non Delegated,CENTRAL ENG COOP,02/06/2015,3.50,Materials - General,Department Stores,GPC
Statement 19/05/2015 to 17/06/2015,C&YPS-Non Delegated,CENTRAL ENG COOP,20/05/2015,9.54,Other Equipment & Materials - General,Department Stores,GPC
Statement 19/05/2015 to 17/06/2015,C&YPS-Non Delegated,CENTRAL ENG COOP,22/05/2015,2.59,Other Equipment & Materials - General,Department Stores,GPC
Statement 19/05/2015 to 17/06/2015,C&YPS-Non Delegated,CENTRAL ENG COOP,08/06/2015,5.00,Other Equipment & Materials - General,Department Stores,GPC
Statement 19/05/2015 to 17/06/2015,C&YPS-Non Delegated,CENTRAL ENG COOP,10/06/2015,13.66,Other Equipment & Materials - General,Department Stores,GPC
Statement 19/05/2015 to 17/06/2015,C&YPS-Non Delegated,CENTRAL ENG COOP,15/06/2015,5.74,Other Equipment & Materials - General,Department Stores,GPC
Statement 19/05/2015 to 17/06/2015,C&YPS-Non Delegated,CENTRAL ENG COOP,15/06/2015,11.37,Other Equipment & Materials - General,Department Stores,GPC
Statement 19/05/2015 to 17/06/2015,C&YPS-Non Delegated,CENTRAL ENG COOP,26/05/2015,12.80,Other Expenditure - General,Department Stores,GPC
Statement 19/05/2015 to 17/06/2015,C&YPS-Non Delegated,CENTRAL ENG COOP,30/05/2015,65.00,Personal Needs of Clients - General,Department Stores,GPC
Statement 19/05/2015 to 17/06/2015,C&YPS-Non Delegated,CENTRAL ENG COOP,05/06/2015,10.78,Subsistence - General,Department Stores,GPC
Statement 19/05/2015 to 17/06/2015,C&YPS-Non Delegated,CENTRAL ENG COOP,10/06/2015,8.33,Subsistence - General,Department Stores,GPC
Statement 19/05/2015 to 17/06/2015,C&YPS-Non Delegated,CO-OP GROUP 011831,01/06/2015,9.48,Other Equipment & Materials - General,"Grocery Stores, Supermarkets",GPC
Statement 19/05/2015 to 17/06/2015,C&YPS-Non Delegated,COSTA COFFEE,27/05/2015,8.00,Other Expenditure - General,"Eating Places, Restaurants",GPC
Statement 19/05/2015 to 17/06/2015,C&YPS-Non Delegated,COSTA COFFEE,10/06/2015,4.70,Subsistence - General,"Eating Places, Restaurants",GPC
Statement 19/05/2015 to 17/06/2015,C&YPS-Non Delegated,DE MONTFORT EXPERTISE LTD,16/06/2015,286.45,Other Transfer Payments - Sector 17- Other,"Colleges, Universities, Professional Schools, and",GPC
Statement 19/05/2015 to 17/06/2015,C&YPS-Non Delegated,DE MONTFORT EXPERTISE LTD,16/06/2015,298.38,Other Transfer Payments - Sector 17- Other,"Colleges, Universities, Professional Schools, and",GPC
Statement 19/05/2015 to 17/06/2015,C&YPS-Non Delegated,DISCLOSURE SCOT,09/06/2015,25.00,Other Expenditure - General,Government Services-Not Elsewhere Classified,GPC
Statement 19/05/2015 to 17/06/2015,C&YPS-Non Delegated,DUNELM (SOFT FURNISHIN,04/06/2015,9.10,Provisions - General,"Drapery, Window Coverings, and Upholstery Stores",GPC
Statement 19/05/2015 to 17/06/2015,C&YPS-Non Delegated,EAST MIDLANDS TRAI,19/05/2015,50.50,Casual/Essential - General,Passenger Railways,GPC
Statement 19/05/2015 to 17/06/2015,C&YPS-Non Delegated,GOOSEBERRY BUSH,29/05/2015,101.60,Other Transfer Payments - Section 23 Grants,Child Care Services,GPC
Statement 19/05/2015 to 17/06/2015,C&YPS-Non Delegated,GRO HM PASSPORT OFFICE,20/05/2015,18.50,Other Expenditure - General,Government Services-Not Elsewhere Classified,GPC
Statement 19/05/2015 to 17/06/2015,C&YPS-Non Delegated,GRO HM PASSPORT OFFICE,20/05/2015,-9.25,Other Expenditure - General,Government Services-Not Elsewhere Classified,GPC
Statement 19/05/2015 to 17/06/2015,C&YPS-Non Delegated,HAWGRIP NURSERIES,12/06/2015,10.30,Materials - General,"Lawn and Garden Supply Stores, Nurseries",GPC
Statement 19/05/2015 to 17/06/2015,C&YPS-Non Delegated,HFE SIGNS LTD,22/05/2015,49.39,Other Equipment & Materials - General,Miscellaneous Publishing and  Printing,GPC
Statement 19/05/2015 to 17/06/2015,C&YPS-Non Delegated,HIGH STREET VOUCHE,19/05/2015,50.00,Other Transfer Payments - Section 24,"Gift, Card, Novelty, and Souvenir Shops",GPC
Statement 19/05/2015 to 17/06/2015,C&YPS-Non Delegated,HM PASSPORT OFFICE,19/05/2015,72.50,Other Expenditure - General,Government Services-Not Elsewhere Classified,GPC
Statement 19/05/2015 to 17/06/2015,C&YPS-Non Delegated,HMCOURTS-SERVICE.G,18/05/2015,20.00,Other Expenditure - General,Fines,GPC
Statement 19/05/2015 to 17/06/2015,C&YPS-Non Delegated,HOME BARGAINS COALVILL,27/05/2015,29.99,Other Equipment & Materials - General,Hardware Stores,GPC
Statement 19/05/2015 to 17/06/2015,C&YPS-Non Delegated,HUNTERS PROPERTY LETTI,05/06/2015,276.92,Other Transfer Payments - Section 23 Grants,Professional Services-Not Elsewhere Classified,GPC
Statement 19/05/2015 to 17/06/2015,C&YPS-Non Delegated,IBIS HOTEL - LEICESTER,15/06/2015,180.00,Subsistence - General,"Lodging-Hotels, Motels, Resorts",GPC
Statement 19/05/2015 to 17/06/2015,C&YPS-Non Delegated,INC SOC MUSICIANS,18/05/2015,50.00,Training Expenses - General,CombinationMail/Phones and Retail Merchants,GPC
Statement 19/05/2015 to 17/06/2015,C&YPS-Non Delegated,KFC - COALVILLE,09/06/2015,9.86,Other Expenditure - General,Fast-Food Restaurants (Quick Payment Service Pilot,GPC
Statement 19/05/2015 to 17/06/2015,C&YPS-Non Delegated,KFC-LEICESTER BRAUNSTO,27/05/2015,6.19,Other Expenditure - General,Fast-Food Restaurants (Quick Payment Service Pilot,GPC
Statement 19/05/2015 to 17/06/2015,C&YPS-Non Delegated,LCC CATERING SERVICES,10/06/2015,9.99,Other Expenditure - General,Government Services-Not Elsewhere Classified,GPC
Statement 19/05/2015 to 17/06/2015,C&YPS-Non Delegated,LE PETIT FOUR FRANCAIS,29/05/2015,5.70,Subsistence - General,Fast-Food Restaurants (Quick Payment Service Pilot,GPC
Statement 19/05/2015 to 17/06/2015,C&YPS-Non Delegated,LE PETIT FOUR FRANCAIS,09/06/2015,5.70,Subsistence - General,Fast-Food Restaurants (Quick Payment Service Pilot,GPC
Statement 19/05/2015 to 17/06/2015,C&YPS-Non Delegated,LEIC CITY COUNCIL,21/05/2015,32.50,Other Equipment & Materials - General,Government Services-Not Elsewhere Classified,GPC
Statement 19/05/2015 to 17/06/2015,C&YPS-Non Delegated,LEIC CITY COUNCIL,12/06/2015,13.00,Other Expenditure - General,Government Services-Not Elsewhere Classified,GPC
Statement 19/05/2015 to 17/06/2015,C&YPS-Non Delegated,LEIC CITY COUNCIL,12/06/2015,13.00,Other Expenditure - General,Government Services-Not Elsewhere Classified,GPC
Statement 19/05/2015 to 17/06/2015,C&YPS-Non Delegated,LEIC CITY COUNCIL,22/05/2015,13.00,Other Transfer Payments - Leaving Care Grants,Government Services-Not Elsewhere Classified,GPC
Statement 19/05/2015 to 17/06/2015,C&YPS-Non Delegated,LEIC CITY COUNCIL,15/05/2015,23.00,Other Transfer Payments - Section 23 Grants,Government Services-Not Elsewhere Classified,GPC
Statement 19/05/2015 to 17/06/2015,C&YPS-Non Delegated,LEIC CITY COUNCIL,18/05/2015,13.00,Other Transfer Payments - Section 23 Grants,Government Services-Not Elsewhere Classified,GPC
Statement 19/05/2015 to 17/06/2015,C&YPS-Non Delegated,LEIC CITY COUNCIL,26/05/2015,23.00,Other Transfer Payments - Section 23 Grants,Government Services-Not Elsewhere Classified,GPC
Statement 19/05/2015 to 17/06/2015,C&YPS-Non Delegated,LEIC CITY COUNCIL,29/05/2015,13.00,Other Transfer Payments - Section 23 Grants,Government Services-Not Elsewhere Classified,GPC
Statement 19/05/2015 to 17/06/2015,C&YPS-Non Delegated,LEIC CITY COUNCIL,01/06/2015,13.00,Other Transfer Payments - Section 23 Grants,Government Services-Not Elsewhere Classified,GPC
Statement 19/05/2015 to 17/06/2015,C&YPS-Non Delegated,LEIC CITY COUNCIL,01/06/2015,23.00,Other Transfer Payments - Section 23 Grants,Government Services-Not Elsewhere Classified,GPC
Statement 19/05/2015 to 17/06/2015,C&YPS-Non Delegated,LEIC CITY COUNCIL,03/06/2015,13.00,Other Transfer Payments - Section 23 Grants,Government Services-Not Elsewhere Classified,GPC
Statement 19/05/2015 to 17/06/2015,C&YPS-Non Delegated,LEIC CITY COUNCIL,08/06/2015,-20.00,Other Transfer Payments - Section 23 Grants,Government Services-Not Elsewhere Classified,GPC
Statement 19/05/2015 to 17/06/2015,C&YPS-Non Delegated,LEIC CITY COUNCIL,18/05/2015,13.00,Other Transfer Payments - Sector 17- Other,Government Services-Not Elsewhere Classified,GPC
Statement 19/05/2015 to 17/06/2015,C&YPS-Non Delegated,LEIC CITY COUNCIL,08/06/2015,8.00,Personal Needs of Clients - Holidays & Outings,Government Services-Not Elsewhere Classified,GPC
Statement 19/05/2015 to 17/06/2015,C&YPS-Non Delegated,LEICESTERSHIRE C COUNC,29/05/2015,11.00,Other Transfer Payments - Section 23 Grants,Government Services-Not Elsewhere Classified,GPC
Statement 19/05/2015 to 17/06/2015,C&YPS-Non Delegated,LEICESTERSHIRE C COUNC,29/05/2015,11.00,Other Transfer Payments - Section 23 Grants,Government Services-Not Elsewhere Classified,GPC
Statement 19/05/2015 to 17/06/2015,C&YPS-Non Delegated,LIDL UK,20/05/2015,2.43,Provisions - General,"Grocery Stores, Supermarkets",GPC
Statement 19/05/2015 to 17/06/2015,C&YPS-Non Delegated,LIDL UK,12/06/2015,66.76,Provisions - General,"Grocery Stores, Supermarkets",GPC
Statement 19/05/2015 to 17/06/2015,C&YPS-Non Delegated,LINKEDIN-2820247493,16/06/2015,189.95,Recruitment Advertising - General,Continuity/Subscription Merchants,GPC
Statement 19/05/2015 to 17/06/2015,C&YPS-Non Delegated,LOUGHBOROUGH CATERING,20/05/2015,16.01,Other Equipment & Materials - General,"Grocery Stores, Supermarkets",GPC
Statement 19/05/2015 to 17/06/2015,C&YPS-Non Delegated,M&S SIMPLY FOOD - SSP,19/05/2015,4.86,Provisions - General,"Miscellaneous Food Stores-Convenience Stores, Mark",GPC
Statement 19/05/2015 to 17/06/2015,C&YPS-Non Delegated,MATALAN,22/05/2015,37.00,Personal Needs of Clients - Clothing,Men's And Women's Clothing Stores,GPC
Statement 19/05/2015 to 17/06/2015,C&YPS-Non Delegated,MCDONALDS,19/05/2015,3.06,Other Equipment & Materials - General,"Eating Places, Restaurants",GPC
Statement 19/05/2015 to 17/06/2015,C&YPS-Non Delegated,MCDONALDS,20/05/2015,1.90,Other Equipment & Materials - General,"Eating Places, Restaurants",GPC
Statement 19/05/2015 to 17/06/2015,C&YPS-Non Delegated,MCDONALDS,20/05/2015,4.48,Other Equipment & Materials - General,"Eating Places, Restaurants",GPC
Statement 19/05/2015 to 17/06/2015,C&YPS-Non Delegated,MCDONALDS,21/05/2015,4.86,Other Equipment & Materials - General,"Eating Places, Restaurants",GPC
Statement 19/05/2015 to 17/06/2015,C&YPS-Non Delegated,MCDONALDS,26/05/2015,6.07,Other Equipment & Materials - General,"Eating Places, Restaurants",GPC
Statement 19/05/2015 to 17/06/2015,C&YPS-Non Delegated,MCDONALDS,26/05/2015,5.28,Other Equipment & Materials - General,"Eating Places, Restaurants",GPC
Statement 19/05/2015 to 17/06/2015,C&YPS-Non Delegated,MCDONALDS,27/05/2015,4.32,Other Equipment & Materials - General,Fast-Food Restaurants (Quick Payment Service Pilot,GPC
Statement 19/05/2015 to 17/06/2015,C&YPS-Non Delegated,MCDONALDS,01/06/2015,5.89,Other Equipment & Materials - General,"Eating Places, Restaurants",GPC
Statement 19/05/2015 to 17/06/2015,C&YPS-Non Delegated,MCDONALDS,02/06/2015,2.81,Other Equipment & Materials - General,"Eating Places, Restaurants",GPC
Statement 19/05/2015 to 17/06/2015,C&YPS-Non Delegated,MCDONALDS,02/06/2015,2.89,Other Equipment & Materials - General,"Eating Places, Restaurants",GPC
Statement 19/05/2015 to 17/06/2015,C&YPS-Non Delegated,MCDONALDS,03/06/2015,2.90,Other Equipment & Materials - General,"Eating Places, Restaurants",GPC
Statement 19/05/2015 to 17/06/2015,C&YPS-Non Delegated,MCDONALDS,08/06/2015,3.06,Other Equipment & Materials - General,"Eating Places, Restaurants",GPC
Statement 19/05/2015 to 17/06/2015,C&YPS-Non Delegated,MCDONALDS,16/06/2015,5.05,Other Equipment & Materials - General,"Eating Places, Restaurants",GPC
Statement 19/05/2015 to 17/06/2015,C&YPS-Non Delegated,MCDONALDS,21/05/2015,7.67,Other Expenditure - General,Fast-Food Restaurants (Quick Payment Service Pilot,GPC
Statement 19/05/2015 to 17/06/2015,C&YPS-Non Delegated,MCDONALDS,22/05/2015,6.06,Other Expenditure - General,"Eating Places, Restaurants",GPC
Statement 19/05/2015 to 17/06/2015,C&YPS-Non Delegated,MCDONALDS,22/05/2015,6.37,Other Expenditure - General,"Eating Places, Restaurants",GPC
Statement 19/05/2015 to 17/06/2015,C&YPS-Non Delegated,MCDONALDS,26/05/2015,6.38,Other Expenditure - General,"Eating Places, Restaurants",GPC
Statement 19/05/2015 to 17/06/2015,C&YPS-Non Delegated,MCDONALDS,29/05/2015,5.38,Other Expenditure - General,"Eating Places, Restaurants",GPC
Statement 19/05/2015 to 17/06/2015,C&YPS-Non Delegated,MCDONALDS,02/06/2015,6.47,Other Expenditure - General,Fast-Food Restaurants (Quick Payment Service Pilot,GPC
Statement 19/05/2015 to 17/06/2015,C&YPS-Non Delegated,MCDONALDS,04/06/2015,8.17,Other Expenditure - General,"Eating Places, Restaurants",GPC
Statement 19/05/2015 to 17/06/2015,C&YPS-Non Delegated,MCDONALDS,10/06/2015,13.15,Other Expenditure - General,Fast-Food Restaurants (Quick Payment Service Pilot,GPC
Statement 19/05/2015 to 17/06/2015,C&YPS-Non Delegated,MCDONALDS,16/06/2015,8.27,Other Expenditure - General,Fast-Food Restaurants (Quick Payment Service Pilot,GPC
Statement 19/05/2015 to 17/06/2015,C&YPS-Non Delegated,MCDONALDS,26/05/2015,7.47,Subsistence - General,"Eating Places, Restaurants",GPC
Statement 19/05/2015 to 17/06/2015,C&YPS-Non Delegated,MCDONALDS,26/05/2015,2.78,Subsistence - General,"Eating Places, Restaurants",GPC
Statement 19/05/2015 to 17/06/2015,C&YPS-Non Delegated,MELTON ANGLING,19/05/2015,17.91,Other Equipment & Materials - General,Sporting Goods Stores,GPC
Statement 19/05/2015 to 17/06/2015,C&YPS-Non Delegated,MIKE B'S SECURITY LOCKSM,12/06/2015,20.62,Other Equipment & Materials - General,Hardware Stores,GPC
Statement 19/05/2015 to 17/06/2015,C&YPS-Non Delegated,MUFFIN BREAK (LOUGHBOR,20/05/2015,8.00,Other Equipment & Materials - General,"Eating Places, Restaurants",GPC
Statement 19/05/2015 to 17/06/2015,C&YPS-Non Delegated,NATIONAL EXPRESS LIMITED,22/05/2015,31.00,Casual/Essential - General,"Bus Lines, Charters, Tour Buses",GPC
Statement 19/05/2015 to 17/06/2015,C&YPS-Non Delegated,NCP LIMITED,11/06/2015,5.40,Casual/Essential - General,Automobile Parking Lots and Garages,GPC
Statement 19/05/2015 to 17/06/2015,C&YPS-Non Delegated,NCP LIMITED,27/05/2015,3.90,Public Transport -  Staff - General,Automobile Parking Lots and Garages,GPC
Statement 19/05/2015 to 17/06/2015,C&YPS-Non Delegated,NEW LOOK,01/06/2015,5.00,Provisions - General,Women's Ready to Wear Shoes,GPC
Statement 19/05/2015 to 17/06/2015,C&YPS-Non Delegated,ODEON,30/05/2015,43.50,Provisions - General,Motion Picture Theatres,GPC
Statement 19/05/2015 to 17/06/2015,C&YPS-Non Delegated,PALMERS GARDEN CTR,11/06/2015,2.98,Other Equipment & Materials - General,"Lawn and Garden Supply Stores, Nurseries",GPC
Statement 19/05/2015 to 17/06/2015,C&YPS-Non Delegated,PAPERSTONE,04/06/2015,39.15,Other Equipment & Materials - General,"Stationery, Office, and School Supply Stores",GPC
Statement 19/05/2015 to 17/06/2015,C&YPS-Non Delegated,PARKING LEIC CC,02/06/2015,4.00,Other Expenditure - General,Government Services-Not Elsewhere Classified,GPC
Statement 19/05/2015 to 17/06/2015,C&YPS-Non Delegated,PARKING LEIC CC,10/06/2015,3.00,Other Expenditure - General,Government Services-Not Elsewhere Classified,GPC
Statement 19/05/2015 to 17/06/2015,C&YPS-Non Delegated,PAYPAL  CHRIS,03/06/2015,9.95,Other Equipment & Materials - General,Professional Services-Not Elsewhere Classified,GPC
Statement 19/05/2015 to 17/06/2015,C&YPS-Non Delegated,PAYPAL  EBAYECON,18/05/2015,7.47,Other Equipment & Materials - General,"Artist Supply Stores, Craft Shops",GPC
Statement 19/05/2015 to 17/06/2015,C&YPS-Non Delegated,PAYPAL  JEANETTEMEE,12/06/2015,5.46,Other Equipment & Materials - General,Miscellaneous and Specialty Retail Stores,GPC
Statement 19/05/2015 to 17/06/2015,C&YPS-Non Delegated,PETERBOROUGH DIRECT,28/05/2015,21.00,Other Transfer Payments - Section 23 Grants,Government Services-Not Elsewhere Classified,GPC
Statement 19/05/2015 to 17/06/2015,C&YPS-Non Delegated,PIZZA HUT 782,18/05/2015,47.24,Provisions - General,"Eating Places, Restaurants",GPC
Statement 19/05/2015 to 17/06/2015,C&YPS-Non Delegated,POST OFFICE COUNTER,27/05/2015,162.00,Postal Services - General,Postage Stamps,GPC
Statement 19/05/2015 to 17/06/2015,C&YPS-Non Delegated,POST OFFICE COUNTER,29/05/2015,200.00,Postal Services - General,Postage Stamps,GPC
Statement 19/05/2015 to 17/06/2015,C&YPS-Non Delegated,POST OFFICE COUNTER,02/06/2015,26.16,Postal Services - General,Postage Stamps,GPC
Statement 19/05/2015 to 17/06/2015,C&YPS-Non Delegated,POUNDBASE,20/05/2015,5.00,Other Equipment & Materials - General,Discount Stores,GPC
Statement 19/05/2015 to 17/06/2015,C&YPS-Non Delegated,POUNDSTRETCHER 175,15/06/2015,5.76,Provisions - General,"Drapery, Window Coverings, and Upholstery Stores",GPC
Statement 19/05/2015 to 17/06/2015,C&YPS-Non Delegated,POUNDWORLD RETAIL,20/05/2015,9.00,Other Equipment & Materials - General,Discount Stores,GPC
Statement 19/05/2015 to 17/06/2015,C&YPS-Non Delegated,PRIMARK STORES LTD,22/05/2015,49.50,Personal Needs of Clients - Clothing,Family Clothing Stores,GPC
Statement 19/05/2015 to 17/06/2015,C&YPS-Non Delegated,REGISTRA,12/06/2015,11.00,Other Expenditure - General,Government Services-Not Elsewhere Classified,GPC
Statement 19/05/2015 to 17/06/2015,C&YPS-Non Delegated,ROBERT DYAS HOLDNG LTD,09/06/2015,89.97,Other Equipment & Materials - General,Hardware Stores,GPC
Statement 19/05/2015 to 17/06/2015,C&YPS-Non Delegated,ROYAL SCHOOLS OF M,21/05/2015,70.75,Operational Equipment - General,Charitable and Social Service Organizations,GPC
Statement 19/05/2015 to 17/06/2015,C&YPS-Non Delegated,ROYAL SCHOOLS OF M,21/05/2015,11.25,Operational Equipment - General,Charitable and Social Service Organizations,GPC
Statement 19/05/2015 to 17/06/2015,C&YPS-Non Delegated,SAINSBURY'S S/MKT,22/05/2015,4.60,Materials - General,"Grocery Stores, Supermarkets",GPC
Statement 19/05/2015 to 17/06/2015,C&YPS-Non Delegated,SAINSBURY'S S/MKT,01/06/2015,1.95,Materials - General,"Grocery Stores, Supermarkets",GPC
Statement 19/05/2015 to 17/06/2015,C&YPS-Non Delegated,SAINSBURY'S S/MKT,08/06/2015,8.05,Materials - General,"Grocery Stores, Supermarkets",GPC
Statement 19/05/2015 to 17/06/2015,C&YPS-Non Delegated,SAINSBURY'S S/MKT,09/06/2015,8.00,Materials - General,"Grocery Stores, Supermarkets",GPC
Statement 19/05/2015 to 17/06/2015,C&YPS-Non Delegated,SAINSBURY'S S/MKT,12/06/2015,5.74,Materials - General,"Grocery Stores, Supermarkets",GPC
Statement 19/05/2015 to 17/06/2015,C&YPS-Non Delegated,SAINSBURY'S S/MKT,15/06/2015,2.85,Materials - General,"Grocery Stores, Supermarkets",GPC
Statement 19/05/2015 to 17/06/2015,C&YPS-Non Delegated,SAINSBURY'S S/MKT,18/05/2015,3.50,Other Equipment & Materials - General,"Grocery Stores, Supermarkets",GPC
Statement 19/05/2015 to 17/06/2015,C&YPS-Non Delegated,SAINSBURY'S S/MKT,19/05/2015,4.10,Other Equipment & Materials - General,"Grocery Stores, Supermarkets",GPC
Statement 19/05/2015 to 17/06/2015,C&YPS-Non Delegated,SAINSBURY'S S/MKT,21/05/2015,5.85,Other Equipment & Materials - General,"Grocery Stores, Supermarkets",GPC
Statement 19/05/2015 to 17/06/2015,C&YPS-Non Delegated,SAINSBURY'S S/MKT,27/05/2015,7.95,Other Equipment & Materials - General,"Grocery Stores, Supermarkets",GPC
Statement 19/05/2015 to 17/06/2015,C&YPS-Non Delegated,SAINSBURY'S S/MKT,01/06/2015,4.70,Other Equipment & Materials - General,"Grocery Stores, Supermarkets",GPC
Statement 19/05/2015 to 17/06/2015,C&YPS-Non Delegated,SAINSBURY'S S/MKT,08/06/2015,5.20,Other Equipment & Materials - General,"Grocery Stores, Supermarkets",GPC
Statement 19/05/2015 to 17/06/2015,C&YPS-Non Delegated,SAINSBURY'S S/MKT,09/06/2015,3.95,Other Equipment & Materials - General,"Grocery Stores, Supermarkets",GPC
Statement 19/05/2015 to 17/06/2015,C&YPS-Non Delegated,SAINSBURY'S S/MKT,11/06/2015,5.85,Other Equipment & Materials - General,"Grocery Stores, Supermarkets",GPC
Statement 19/05/2015 to 17/06/2015,C&YPS-Non Delegated,SAINSBURY'S S/MKT,12/06/2015,4.45,Other Equipment & Materials - General,"Grocery Stores, Supermarkets",GPC
Statement 19/05/2015 to 17/06/2015,C&YPS-Non Delegated,SAINSBURYS S/MKTS,22/05/2015,2.65,Other Equipment & Materials - General,"Grocery Stores, Supermarkets",GPC
Statement 19/05/2015 to 17/06/2015,C&YPS-Non Delegated,SAINSBURYS S/MKTS,02/06/2015,6.39,Other Equipment & Materials - General,"Grocery Stores, Supermarkets",GPC
Statement 19/05/2015 to 17/06/2015,C&YPS-Non Delegated,SAINSBURYS S/MKTS,05/06/2015,2.24,Other Equipment & Materials - General,"Grocery Stores, Supermarkets",GPC
Statement 19/05/2015 to 17/06/2015,C&YPS-Non Delegated,SAINSBURYS S/MKTS,12/06/2015,7.25,Other Equipment & Materials - General,"Grocery Stores, Supermarkets",GPC
Statement 19/05/2015 to 17/06/2015,C&YPS-Non Delegated,SERCO NCS NETWORK,03/06/2015,50.00,Other Transfer Payments - Section 23 Grants,"Colleges, Universities, Professional Schools, and",GPC
Statement 19/05/2015 to 17/06/2015,C&YPS-Non Delegated,SOMERSET COUNTY COUNCI,03/06/2015,11.00,Other Transfer Payments - Section 23 Grants,Government Services-Not Elsewhere Classified,GPC
Statement 19/05/2015 to 17/06/2015,C&YPS-Non Delegated,SOMERSET COUNTY COUNCI,03/06/2015,11.00,Other Transfer Payments - Section 23 Grants,Government Services-Not Elsewhere Classified,GPC
Statement 19/05/2015 to 17/06/2015,C&YPS-Non Delegated,SPAR HAY LANE,04/06/2015,3.00,Subsistence - General,Service Stations (with or without Ancillary Servic,GPC
Statement 19/05/2015 to 17/06/2015,C&YPS-Non Delegated,SQUIDCARD,15/06/2015,15.00,Provisions - General,Business Services-Not Elsewhere Classified,GPC
Statement 19/05/2015 to 17/06/2015,C&YPS-Non Delegated,STONEHURST FARM,29/05/2015,5.50,Provisions - General,"Miscellaneous Food Stores-Convenience Stores, Mark",GPC
Statement 19/05/2015 to 17/06/2015,C&YPS-Non Delegated,STONEHURST FARM,29/05/2015,5.95,Provisions - General,"Miscellaneous Food Stores-Convenience Stores, Mark",GPC
Statement 19/05/2015 to 17/06/2015,C&YPS-Non Delegated,SUBWAY,02/06/2015,3.50,Subsistence - General,"Eating Places, Restaurants",GPC
Statement 19/05/2015 to 17/06/2015,C&YPS-Non Delegated,SUBWAY,03/06/2015,4.89,Subsistence - General,"Eating Places, Restaurants",GPC
Statement 19/05/2015 to 17/06/2015,C&YPS-Non Delegated,SUBWAY,10/06/2015,4.49,Subsistence - General,"Eating Places, Restaurants",GPC
Statement 19/05/2015 to 17/06/2015,C&YPS-Non Delegated,SUGAR MOUSE SWEET SHOP,29/05/2015,6.00,Provisions - General,"Candy, Nut, Confectionery Stores",GPC
Statement 19/05/2015 to 17/06/2015,C&YPS-Non Delegated,TESCO STORE 2849,12/06/2015,9.30,Cleaning Materials - General,"Grocery Stores, Supermarkets",GPC
Statement 19/05/2015 to 17/06/2015,C&YPS-Non Delegated,TESCO STORE 2849,27/05/2015,14.37,Other Equipment & Materials - General,"Grocery Stores, Supermarkets",GPC
Statement 19/05/2015 to 17/06/2015,C&YPS-Non Delegated,TESCO STORE 2849,02/06/2015,20.50,Other Equipment & Materials - General,"Grocery Stores, Supermarkets",GPC
Statement 19/05/2015 to 17/06/2015,C&YPS-Non Delegated,TESCO STORE 2849,10/06/2015,8.08,Other Equipment & Materials - General,"Grocery Stores, Supermarkets",GPC
Statement 19/05/2015 to 17/06/2015,C&YPS-Non Delegated,TESCO STORE 2849,15/06/2015,24.48,Other Equipment & Materials - General,"Grocery Stores, Supermarkets",GPC
Statement 19/05/2015 to 17/06/2015,C&YPS-Non Delegated,TESCO STORES 2849,15/06/2015,8.99,Materials - General,"Grocery Stores, Supermarkets",GPC
Statement 19/05/2015 to 17/06/2015,C&YPS-Non Delegated,TESCO STORES 2849,18/05/2015,2.85,Other Equipment & Materials - General,"Grocery Stores, Supermarkets",GPC
Statement 19/05/2015 to 17/06/2015,C&YPS-Non Delegated,TESCO STORES 2849,29/05/2015,6.00,Other Equipment & Materials - General,"Grocery Stores, Supermarkets",GPC
Statement 19/05/2015 to 17/06/2015,C&YPS-Non Delegated,TESCO STORES 2849,02/06/2015,5.21,Other Equipment & Materials - General,"Grocery Stores, Supermarkets",GPC
Statement 19/05/2015 to 17/06/2015,C&YPS-Non Delegated,TESCO STORES 2849,02/06/2015,6.00,Other Equipment & Materials - General,"Grocery Stores, Supermarkets",GPC
Statement 19/05/2015 to 17/06/2015,C&YPS-Non Delegated,TESCO STORES 2849,26/05/2015,8.07,Subsistence - General,"Grocery Stores, Supermarkets",GPC
Statement 19/05/2015 to 17/06/2015,C&YPS-Non Delegated,TESCO STORES 5182,01/06/2015,7.00,Materials - General,"Grocery Stores, Supermarkets",GPC
Statement 19/05/2015 to 17/06/2015,C&YPS-Non Delegated,TESCO STORES 5182,16/06/2015,2.49,Subsistence - General,"Grocery Stores, Supermarkets",GPC
Statement 19/05/2015 to 17/06/2015,C&YPS-Non Delegated,TESCO STORES 5902,03/06/2015,40.00,Telephones - Mobile Phones,"Grocery Stores, Supermarkets",GPC
Statement 19/05/2015 to 17/06/2015,C&YPS-Non Delegated,TESCO-STORES 6573,05/06/2015,14.33,Materials - General,"Grocery Stores, Supermarkets",GPC
Statement 19/05/2015 to 17/06/2015,C&YPS-Non Delegated,TESCO-STORES-6065,20/05/2015,6.49,Other Equipment & Materials - General,"Grocery Stores, Supermarkets",GPC
Statement 19/05/2015 to 17/06/2015,C&YPS-Non Delegated,THE BOOK PEOPLE,21/05/2015,30.25,Books - General,Book Stores,GPC
Statement 19/05/2015 to 17/06/2015,C&YPS-Non Delegated,THE BOOK PEOPLE,08/06/2015,22.93,Books - General,Book Stores,GPC
Statement 19/05/2015 to 17/06/2015,C&YPS-Non Delegated,THE RANGE,21/05/2015,30.99,General Equipment - General,Miscellaneous General Merchandise Stores,GPC
Statement 19/05/2015 to 17/06/2015,C&YPS-Non Delegated,THE RANGE,11/06/2015,8.97,General Equipment - General,Miscellaneous General Merchandise Stores,GPC
Statement 19/05/2015 to 17/06/2015,C&YPS-Non Delegated,THE RANGE - LOUGHBOROU,29/05/2015,40.14,Other Equipment & Materials - General,Miscellaneous and Specialty Retail Stores,GPC
Statement 19/05/2015 to 17/06/2015,C&YPS-Non Delegated,THE RANGE - LOUGHBOROU,05/06/2015,25.93,Other Equipment & Materials - General,Miscellaneous and Specialty Retail Stores,GPC
Statement 19/05/2015 to 17/06/2015,C&YPS-Non Delegated,TVLICENSING.CO.UK,10/06/2015,145.50,Other Transfer Payments - Leaving Care Grants,"Management, Consulting and Public Relations Servic",GPC
Statement 19/05/2015 to 17/06/2015,C&YPS-Non Delegated,TVLICENSING.CO.UK,10/06/2015,145.50,Other Transfer Payments - Leaving Care Grants,"Management, Consulting and Public Relations Servic",GPC
Statement 19/05/2015 to 17/06/2015,C&YPS-Non Delegated,TVLICENSING.CO.UK,10/06/2015,145.50,Other Transfer Payments - Leaving Care Grants,"Management, Consulting and Public Relations Servic",GPC
Statement 19/05/2015 to 17/06/2015,C&YPS-Non Delegated,TWO STEEPLES,16/06/2015,4.08,Other Equipment & Materials - General,"Drinking Places (Alcoholic Beverages)-Bars, Tavern",GPC
Statement 19/05/2015 to 17/06/2015,C&YPS-Non Delegated,VUE BSL LTD,24/05/2015,21.87,Personal Needs of Clients - Holidays & Outings,Motion Picture Theatres,GPC
Statement 19/05/2015 to 17/06/2015,C&YPS-Non Delegated,W M MORRISON,18/05/2015,32.97,Other Expenditure - General,"Grocery Stores, Supermarkets",GPC
Statement 19/05/2015 to 17/06/2015,C&YPS-Non Delegated,W M MORRISON,01/06/2015,31.51,Other Expenditure - General,"Grocery Stores, Supermarkets",GPC
Statement 19/05/2015 to 17/06/2015,C&YPS-Non Delegated,W M MORRISON,08/06/2015,34.11,Other Expenditure - General,"Grocery Stores, Supermarkets",GPC
Statement 19/05/2015 to 17/06/2015,C&YPS-Non Delegated,W M MORRISON,15/06/2015,27.38,Other Expenditure - General,"Grocery Stores, Supermarkets",GPC
Statement 19/05/2015 to 17/06/2015,C&YPS-Non Delegated,W M MORRISONS,18/05/2015,17.68,Other Equipment & Materials - General,"Grocery Stores, Supermarkets",GPC
Statement 19/05/2015 to 17/06/2015,C&YPS-Non Delegated,W M MORRISONS,19/05/2015,8.36,Other Equipment & Materials - General,"Grocery Stores, Supermarkets",GPC
Statement 19/05/2015 to 17/06/2015,C&YPS-Non Delegated,W M MORRISONS,22/05/2015,17.77,Other Equipment & Materials - General,"Grocery Stores, Supermarkets",GPC
Statement 19/05/2015 to 17/06/2015,C&YPS-Non Delegated,W M MORRISONS,27/05/2015,13.85,Other Equipment & Materials - General,"Grocery Stores, Supermarkets",GPC
Statement 19/05/2015 to 17/06/2015,C&YPS-Non Delegated,W M MORRISONS,03/06/2015,10.45,Other Equipment & Materials - General,"Grocery Stores, Supermarkets",GPC
Statement 19/05/2015 to 17/06/2015,C&YPS-Non Delegated,W M MORRISONS,04/06/2015,3.61,Other Equipment & Materials - General,"Grocery Stores, Supermarkets",GPC
Statement 19/05/2015 to 17/06/2015,C&YPS-Non Delegated,W M MORRISONS,15/06/2015,14.70,Other Equipment & Materials - General,"Grocery Stores, Supermarkets",GPC
Statement 19/05/2015 to 17/06/2015,C&YPS-Non Delegated,WILKO RETAIL LIMIT,20/05/2015,2.10,Other Equipment & Materials - General,Household Appliance Stores,GPC
Statement 19/05/2015 to 17/06/2015,C&YPS-Non Delegated,WILKO RETAIL LIMIT,22/05/2015,4.15,Other Equipment & Materials - General,Household Appliance Stores,GPC
Statement 19/05/2015 to 17/06/2015,C&YPS-Non Delegated,WILKO RETAIL LIMIT,18/05/2015,4.85,Other Expenditure - General,Household Appliance Stores,GPC
Statement 19/05/2015 to 17/06/2015,C&YPS-Non Delegated,WILKO RETAIL LIMIT,15/06/2015,27.30,Provisions - General,Household Appliance Stores,GPC
Statement 19/05/2015 to 17/06/2015,C&YPS-Non Delegated,WISTOW CAFE BISTRO,01/06/2015,5.40,Other Equipment & Materials - General,"Eating Places, Restaurants",GPC
Statement 19/05/2015 to 17/06/2015,C&YPS-Non Delegated,WM MORRISON 054,21/05/2015,38.21,Other Equipment & Materials - General,"Grocery Stores, Supermarkets",GPC
Statement 19/05/2015 to 17/06/2015,C&YPS-Non Delegated,WM MORRISON 054,02/06/2015,8.77,Other Equipment & Materials - General,"Grocery Stores, Supermarkets",GPC
Statement 19/05/2015 to 17/06/2015,C&YPS-Non Delegated,WM MORRISON 054,28/05/2015,25.22,Provisions - General,"Grocery Stores, Supermarkets",GPC
Statement 19/05/2015 to 17/06/2015,C&YPS-Non Delegated,WOODLANDS GARDEN C,09/06/2015,3.80,Other Equipment & Materials - General,"Lawn and Garden Supply Stores, Nurseries",GPC
Statement 19/05/2015 to 17/06/2015,C&YPS-Non Delegated,WWW.BAAF.ORG.UK,26/05/2015,73.70,Other Agency & Cont Services - Adoption of Children,CombinationMail/Phones and Retail Merchants,GPC
Statement 19/05/2015 to 17/06/2015,C&YPS-Non Delegated,WWW.BAKERROSS.CO.UK,21/05/2015,35.89,Other Equipment & Materials - General,"Artist Supply Stores, Craft Shops",GPC
Statement 19/05/2015 to 17/06/2015,C&YPS-Non Delegated,WWW.CITIZENCARD.COM,20/05/2015,15.00,Asylum Seekers - Over 18,Government Services-Not Elsewhere Classified,GPC
Statement 19/05/2015 to 17/06/2015,C&YPS-Non Delegated,WWW.CITIZENCARD.COM,27/05/2015,15.00,Asylum Seekers - Over 18,Government Services-Not Elsewhere Classified,GPC
Statement 19/05/2015 to 17/06/2015,C&YPS-Non Delegated,WWW.DVLA.GOV.UK,11/06/2015,167.50,Training Expenses - General,Government Services-Not Elsewhere Classified,GPC
Statement 19/05/2015 to 17/06/2015,C&YPS-Non Delegated,WWW.GEAR4MUSIC.COM,22/05/2015,239.74,Materials - General,"Music Stores-Musical Instruments, Pianos, Sheet Mu",GPC
Statement 19/05/2015 to 17/06/2015,C&YPS-Non Delegated,WWW.MILKANDMORE.CO.UK,22/05/2015,7.05,Provisions - General,Continuity/Subscription Merchants,GPC
Statement 19/05/2015 to 17/06/2015,C&YPS-Non Delegated,WWW.MILKANDMORE.CO.UK,01/06/2015,11.75,Provisions - General,Continuity/Subscription Merchants,GPC
Statement 19/05/2015 to 17/06/2015,C&YPS-Non Delegated,WWW.MILKANDMORE.CO.UK,01/06/2015,12.48,Provisions - General,Continuity/Subscription Merchants,GPC
Statement 19/05/2015 to 17/06/2015,C&YPS-Non Delegated,WWW.MILKANDMORE.CO.UK,01/06/2015,6.24,Provisions - General,Continuity/Subscription Merchants,GPC
Statement 19/05/2015 to 17/06/2015,C&YPS-Non Delegated,WWW.POSTOFFICE.CO.UK,24/05/2015,27.00,Postal Services - General,Postage Stamps,GPC
Statement 19/05/2015 to 17/06/2015,C&YPS-Non Delegated,WWW.RAINBOWSAFETEY.CO.UK,29/05/2015,45.65,Other Equipment & Materials - General,Miscellaneous and Specialty Retail Stores,GPC
Statement 19/05/2015 to 17/06/2015,C&YPS-Non Delegated,WWW.ROYALMAIL.COM,21/05/2015,126.00,Postal Services - General,Postage Stamps,GPC
Statement 19/05/2015 to 17/06/2015,C&YPS-Non Delegated,WWW.TEACHERSHOP.SCHOLAST,21/05/2015,19.98,Books - General,Miscellaneous and Specialty Retail Stores,GPC
Statement 19/05/2015 to 17/06/2015,C&YPS-Non Delegated,WWW.TEACHERSHOP.SCHOLAST,08/06/2015,39.95,Books - General,Miscellaneous and Specialty Retail Stores,GPC
Statement 19/05/2015 to 17/06/2015,C&YPS-Non Delegated,WWW.TWYCROSSZOO.ORG,20/05/2015,58.76,Other Transfer Payments - Section 23 Grants,Tourist Attractions and Exhibits,GPC
Statement 19/05/2015 to 17/06/2015,C&YPS-Non Delegated,XPLICIT CLOTHING,29/05/2015,25.00,Personal Needs of Clients - Clothing,Men's and Boy's Clothing and Furnishings Store,GPC
Statement 19/05/2015 to 17/06/2015,C&YPS-Schools,Amazon Svcs Europe SAR,18/05/2015,7.99,Books - General,Book Stores,GPC
Statement 19/05/2015 to 17/06/2015,C&YPS-Schools,Amazon Svcs Europe SAR,18/05/2015,8.23,Books - General,Book Stores,GPC
Statement 19/05/2015 to 17/06/2015,C&YPS-Schools,ARGOS LTD,11/06/2015,23.03,Materials - General,Discount Stores,GPC
Statement 19/05/2015 to 17/06/2015,C&YPS-Schools,JS ONLINE GROCERY,19/05/2015,41.50,Materials - General,"Grocery Stores, Supermarkets",GPC
Statement 19/05/2015 to 17/06/2015,C&YPS-Schools,JS ONLINE GROCERY,01/06/2015,51.00,Materials - General,"Grocery Stores, Supermarkets",GPC
Statement 19/05/2015 to 17/06/2015,C&YPS-Schools,JS ONLINE GROCERY,09/06/2015,84.00,Materials - General,"Grocery Stores, Supermarkets",GPC
Statement 19/05/2015 to 17/06/2015,C&YPS-Schools,JS ONLINE GROCERY,16/06/2015,78.24,Materials - General,"Grocery Stores, Supermarkets",GPC
Statement 19/05/2015 to 17/06/2015,C&YPS-Schools,SAINSBURYS DPASS,01/06/2015,30.00,Materials - General,"Grocery Stores, Supermarkets",GPC
Statement 19/05/2015 to 17/06/2015,C&YPS-Schools,TESCO STORES 5182,21/05/2015,16.44,Materials - General,"Grocery Stores, Supermarkets",GPC
Statement 19/05/2015 to 17/06/2015,C&YPS-Schools,TESCO STORES 5182,22/05/2015,3.00,Materials - General,"Grocery Stores, Supermarkets",GPC
Statement 19/05/2015 to 17/06/2015,Capital,BLABY DISTRICT COUNCIL,19/05/2015,584.04,Buildings - Operational - Expenditure,Government Services-Not Elsewhere Classified,GPC
Statement 19/05/2015 to 17/06/2015,Capital,BLABY DISTRICT COUNCIL,19/05/2015,505.61,Buildings - Operational - Expenditure,Government Services-Not Elsewhere Classified,GPC
Statement 19/05/2015 to 17/06/2015,Capital,BLABY DISTRICT COUNCIL,20/05/2015,662.47,Buildings - Operational - Expenditure,Government Services-Not Elsewhere Classified,GPC
Statement 19/05/2015 to 17/06/2015,Capital,BLDING CONSULTANCY,09/06/2015,525.60,Buildings - Operational - Expenditure,Government Services-Not Elsewhere Classified,GPC
Statement 19/05/2015 to 17/06/2015,Capital,BLDING CONSULTANCY,09/06/2015,525.60,Buildings - Operational - Expenditure,Government Services-Not Elsewhere Classified,GPC
Statement 19/05/2015 to 17/06/2015,Capital,NWLDC CARD PAYMENT,19/05/2015,408.00,Buildings - Operational - Expenditure,Government Services-Not Elsewhere Classified,GPC
Statement 19/05/2015 to 17/06/2015,Chief Executive,Am zon UK M rketpl ce,03/06/2015,25.98,Stationery - General,Miscellaneous and Specialty Retail Stores,GPC
Statement 19/05/2015 to 17/06/2015,Chief Executive,Amazon Svcs Europe SAR,19/05/2015,13.21,Books - General,Book Stores,GPC
Statement 19/05/2015 to 17/06/2015,Chief Executive,Amazon Svcs Europe SAR,20/05/2015,1.83,Stationery - General,Book Stores,GPC
Statement 19/05/2015 to 17/06/2015,Chief Executive,Amazon Svcs Europe SAR,29/05/2015,2.53,Stationery - General,Book Stores,GPC
Statement 19/05/2015 to 17/06/2015,Chief Executive,Amazon UK Marketplace,11/06/2015,111.72,Stationery - General,Miscellaneous and Specialty Retail Stores,GPC
Statement 19/05/2015 to 17/06/2015,Chief Executive,Amazon UK Retail,30/05/2015,7.75,Stationery - General,Direct Marketers - Other,GPC
Statement 19/05/2015 to 17/06/2015,Chief Executive,ARGOS RETAIL GROUP,15/06/2015,153.94,Other Expenditure - General,Discount Stores,GPC
Statement 19/05/2015 to 17/06/2015,Chief Executive,ASDA STORES 4533,07/06/2015,4.17,Materials - General,"Grocery Stores, Supermarkets",GPC
Statement 19/05/2015 to 17/06/2015,Chief Executive,B & Q,06/06/2015,112.51,R & M of Buildings - General,"Building Materials, Lumber Stores",GPC
Statement 19/05/2015 to 17/06/2015,Chief Executive,CHARNWOOD BOROUGH COUNCI,16/06/2015,3.20,Casual/Essential - General,Automobile Parking Lots and Garages,GPC
Statement 19/05/2015 to 17/06/2015,Chief Executive,HP SNAPFISH UK,27/05/2015,30.77,Printing - General,"Photofinishing Laboratories, Photo Developing",GPC
Statement 19/05/2015 to 17/06/2015,Chief Executive,LEICESTER EXECUTIVE CHAUF,19/05/2015,250.00,Contract Hire - General,Taxicabs and Limousines,GPC
Statement 19/05/2015 to 17/06/2015,Chief Executive,LINKEDIN-280 8964123,12/06/2015,189.95,Recruitment Advertising - General,Continuity/Subscription Merchants,GPC
Statement 19/05/2015 to 17/06/2015,Chief Executive,LUL TICKET MACHINE,11/06/2015,12.00,Casual/Essential - General,Passenger Railways,GPC
Statement 19/05/2015 to 17/06/2015,Chief Executive,MIDLAND FEEDS,01/06/2015,190.00,Other Expenditure - Legal Expenses,Pet Shops-Pet Food and Supplies,GPC
Statement 19/05/2015 to 17/06/2015,Chief Executive,NCP LIMITED,15/06/2015,7.00,Casual/Essential - General,Automobile Parking Lots and Garages,GPC
Statement 19/05/2015 to 17/06/2015,Chief Executive,TFL CC/LEZ CHARGE,24/05/2015,11.50,Other Expenditure - General,"Bridge and Road Fees, Tolls",GPC
Statement 19/05/2015 to 17/06/2015,Chief Executive,WWW.CARTRIDGESAVE.CO.U,21/05/2015,261.00,Stationery - General,"Stationery, Office, and School Supply Stores",GPC
Statement 19/05/2015 to 17/06/2015,Chief Executive,WWW.LEICESTERSHIRECC.C,19/05/2015,35.00,Other Expenditure - General,Government Services-Not Elsewhere Classified,GPC
Statement 19/05/2015 to 17/06/2015,Corporate Resources,A W BEESLEY & SON,01/06/2015,10.00,Other Services - General,"Lawn and Garden Supply Stores, Nurseries",GPC
Statement 19/05/2015 to 17/06/2015,Corporate Resources,ABBEY ACCESS LTD,21/05/2015,-57.49,Other Expenditure - General,Hardware Equipment and Supplies,GPC
Statement 19/05/2015 to 17/06/2015,Corporate Resources,Am zon UK Ret il,03/06/2015,5.43,Public Transport -  Staff - General,Direct Marketers - Other,GPC
Statement 19/05/2015 to 17/06/2015,Corporate Resources,Am zon UK Ret il,03/06/2015,5.44,Public Transport -  Staff - General,Direct Marketers - Other,GPC
Statement 19/05/2015 to 17/06/2015,Corporate Resources,Amazon Svcs Europe SAR,30/05/2015,11.24,Public Transport -  Staff - General,Book Stores,GPC
Statement 19/05/2015 to 17/06/2015,Corporate Resources,Amazon Svcs Europe SAR,05/06/2015,2.49,Public Transport -  Staff - General,Book Stores,GPC
Statement 19/05/2015 to 17/06/2015,Corporate Resources,Amazon Svcs Europe SAR,09/06/2015,4.48,Stationery - General,Book Stores,GPC
Statement 19/05/2015 to 17/06/2015,Corporate Resources,Amazon Svcs Europe SAR,22/05/2015,14.54,Telephones - Mobile Phones,Book Stores,GPC
Statement 19/05/2015 to 17/06/2015,Corporate Resources,Amazon Svcs Europe SAR,27/05/2015,38.06,Training Expenses - General,Book Stores,GPC
Statement 19/05/2015 to 17/06/2015,Corporate Resources,Amazon Svcs Europe SAR,10/06/2015,5.70,Training Expenses - General,Book Stores,GPC
Statement 19/05/2015 to 17/06/2015,Corporate Resources,Amazon UK Marketplace,22/05/2015,38.08,IT Equipment - General,Book Stores,GPC
Statement 19/05/2015 to 17/06/2015,Corporate Resources,Amazon UK Marketplace,22/05/2015,9.33,IT Equipment - Purchase - Hardware,Miscellaneous and Specialty Retail Stores,GPC
Statement 19/05/2015 to 17/06/2015,Corporate Resources,Amazon UK Marketplace,26/05/2015,9.01,Other Services - General,Miscellaneous and Specialty Retail Stores,GPC
Statement 19/05/2015 to 17/06/2015,Corporate Resources,Amazon UK Marketplace,16/06/2015,5.75,Stationery - General,Miscellaneous and Specialty Retail Stores,GPC
Statement 19/05/2015 to 17/06/2015,Corporate Resources,Amazon UK Marketplace,22/05/2015,149.58,Telephones - Mobile Phones,Miscellaneous and Specialty Retail Stores,GPC
Statement 19/05/2015 to 17/06/2015,Corporate Resources,Amazon UK Marketplace,28/05/2015,35.98,Training Expenses - General,Miscellaneous and Specialty Retail Stores,GPC
Statement 19/05/2015 to 17/06/2015,Corporate Resources,Amazon UK Marketplace,08/06/2015,5.00,Training Expenses - General,Book Stores,GPC
Statement 19/05/2015 to 17/06/2015,Corporate Resources,Amazon UK Retail,04/06/2015,20.44,Other Equipment & Materials - General,Direct Marketers - Other,GPC
Statement 19/05/2015 to 17/06/2015,Corporate Resources,Amazon UK Retail,04/06/2015,20.44,Other Equipment & Materials - General,Direct Marketers - Other,GPC
Statement 19/05/2015 to 17/06/2015,Corporate Resources,Amazon UK Retail,04/06/2015,20.44,Other Equipment & Materials - General,Direct Marketers - Other,GPC
Statement 19/05/2015 to 17/06/2015,Corporate Resources,Amazon UK Retail,05/06/2015,20.43,Other Equipment & Materials - General,Direct Marketers - Other,GPC
Statement 19/05/2015 to 17/06/2015,Corporate Resources,Amazon UK Retail,06/06/2015,-1.49,Other Equipment & Materials - General,Direct Marketers - Other,GPC
Statement 19/05/2015 to 17/06/2015,Corporate Resources,Amazon UK Retail,06/06/2015,-1.50,Other Equipment & Materials - General,Direct Marketers - Other,GPC
Statement 19/05/2015 to 17/06/2015,Corporate Resources,Amazon UK Retail,06/06/2015,-1.50,Other Equipment & Materials - General,Direct Marketers - Other,GPC
Statement 19/05/2015 to 17/06/2015,Corporate Resources,Amazon UK Retail,06/06/2015,-1.50,Other Equipment & Materials - General,Direct Marketers - Other,GPC
Statement 19/05/2015 to 17/06/2015,Corporate Resources,Amazon UK Retail,01/06/2015,10.99,Other Expenditure - General,Direct Marketers - Other,GPC
Statement 19/05/2015 to 17/06/2015,Corporate Resources,Amazon UK Retail,08/06/2015,16.79,Stationery - General,Direct Marketers - Other,GPC
Statement 19/05/2015 to 17/06/2015,Corporate Resources,Amazon UK Retail,18/05/2015,2.78,Training Expenses - General,Direct Marketers - Other,GPC
Statement 19/05/2015 to 17/06/2015,Corporate Resources,APCOA - NWR LEEDS,05/06/2015,9.50,Casual/Essential - General,Automobile Parking Lots and Garages,GPC
Statement 19/05/2015 to 17/06/2015,Corporate Resources,ASDA  STOES LTD 5759,03/06/2015,22.00,Materials - General,"Grocery Stores, Supermarkets",GPC
Statement 19/05/2015 to 17/06/2015,Corporate Resources,ASDA STORES,10/06/2015,35.00,Stationery - General,"Grocery Stores, Supermarkets",GPC
Statement 19/05/2015 to 17/06/2015,Corporate Resources,ASDA STORES 4477,27/05/2015,7.13,Other Expenditure - General,"Grocery Stores, Supermarkets",GPC
Statement 19/05/2015 to 17/06/2015,Corporate Resources,ASDA STORES 4477,04/06/2015,10.36,Other Expenditure - General,"Grocery Stores, Supermarkets",GPC
Statement 19/05/2015 to 17/06/2015,Corporate Resources,ASDA STORES 4477,15/06/2015,12.50,Other Expenditure - General,"Grocery Stores, Supermarkets",GPC
Statement 19/05/2015 to 17/06/2015,Corporate Resources,ASDA STORES 4533,20/05/2015,12.74,Other Expenditure - General,"Grocery Stores, Supermarkets",GPC
Statement 19/05/2015 to 17/06/2015,Corporate Resources,ASDA STORES 4533,27/05/2015,0.89,Other Expenditure - General,"Grocery Stores, Supermarkets",GPC
Statement 19/05/2015 to 17/06/2015,Corporate Resources,ASDA STORES 4533,03/06/2015,0.79,Other Expenditure - General,"Grocery Stores, Supermarkets",GPC
Statement 19/05/2015 to 17/06/2015,Corporate Resources,AUTOGRILL LEON KINGSCROSS,08/06/2015,12.40,Subsistence - General,"Eating Places, Restaurants",GPC
Statement 19/05/2015 to 17/06/2015,Corporate Resources,B & Q,24/05/2015,1.68,Other Expenditure - General,"Building Materials, Lumber Stores",GPC
Statement 19/05/2015 to 17/06/2015,Corporate Resources,B & Q,24/05/2015,66.68,Other Services - General,"Building Materials, Lumber Stores",GPC
Statement 19/05/2015 to 17/06/2015,Corporate Resources,BINS N BENCHES,27/05/2015,27.96,Other Expenditure - General,"Lawn and Garden Supply Stores, Nurseries",GPC
Statement 19/05/2015 to 17/06/2015,Corporate Resources,BOOTS/0502,08/06/2015,6.49,Other Equipment & Materials - General,"Drug Stores, Pharmacies",GPC
Statement 19/05/2015 to 17/06/2015,Corporate Resources,BOUYGUES E&S FM UK LTD,16/06/2015,9.45,Subsistence - General,Business Services-Not Elsewhere Classified,GPC
Statement 19/05/2015 to 17/06/2015,Corporate Resources,BOUYGUES E&S FM UK LTD,16/06/2015,10.95,Subsistence - General,Business Services-Not Elsewhere Classified,GPC
Statement 19/05/2015 to 17/06/2015,Corporate Resources,BROUGHTON ASTLEY GUNSMIT,06/06/2015,100.00,Other Services - General,Sporting Goods Stores,GPC
Statement 19/05/2015 to 17/06/2015,Corporate Resources,BT BILL PAYMENT 1,10/06/2015,39.08,Telephones - General,Telecommunication Equipment Including Telephone Sa,GPC
Statement 19/05/2015 to 17/06/2015,Corporate Resources,CAFFE NERO,12/06/2015,7.95,Subsistence - General,"Eating Places, Restaurants",GPC
Statement 19/05/2015 to 17/06/2015,Corporate Resources,CAMDEN FOOD CO BARRIER,12/06/2015,13.53,Subsistence - General,Fast-Food Restaurants (Quick Payment Service Pilot,GPC
Statement 19/05/2015 to 17/06/2015,Corporate Resources,CITB,29/05/2015,150.00,Other Equipment & Materials - General,"Colleges, Universities, Professional Schools, and",GPC
Statement 19/05/2015 to 17/06/2015,Corporate Resources,ClickMeeting,18/05/2015,23.41,Training Expenses - General,Computer Network/Information Services,GPC
Statement 19/05/2015 to 17/06/2015,Corporate Resources,ClickMeeting,12/06/2015,23.41,Training Expenses - General,Computer Network/Information Services,GPC
Statement 19/05/2015 to 17/06/2015,Corporate Resources,CONTINUITY SHOP,16/06/2015,800.00,Training Expenses - General,Professional Services-Not Elsewhere Classified,GPC
Statement 19/05/2015 to 17/06/2015,Corporate Resources,CONTINUITY SHOP,16/06/2015,800.00,Training Expenses - General,Professional Services-Not Elsewhere Classified,GPC
Statement 19/05/2015 to 17/06/2015,Corporate Resources,COOKS FARM SHOP,11/06/2015,16.20,Other Expenditure - Public Enquiry fees,"Lawn and Garden Supply Stores, Nurseries",GPC
Statement 19/05/2015 to 17/06/2015,Corporate Resources,CO-OP GROUP 070412,28/05/2015,12.74,Other Expenditure - General,"Grocery Stores, Supermarkets",GPC
Statement 19/05/2015 to 17/06/2015,Corporate Resources,CO-OP GROUP 070412,03/06/2015,12.88,Other Expenditure - General,"Grocery Stores, Supermarkets",GPC
Statement 19/05/2015 to 17/06/2015,Corporate Resources,CO-OP LATE SHOP,08/06/2015,4.47,Other Expenditure - General,"Grocery Stores, Supermarkets",GPC
Statement 19/05/2015 to 17/06/2015,Corporate Resources,COUNTERLINE LTD,04/06/2015,32.70,Protective Clothing & Uniforms - General,Commercial Equipment Not Elsewhere Classified,GPC
Statement 19/05/2015 to 17/06/2015,Corporate Resources,CROSS COUNTRY CC,19/05/2015,133.50,Training Expenses - General,Passenger Railways,GPC
Statement 19/05/2015 to 17/06/2015,Corporate Resources,CROSS COUNTRY CC,21/05/2015,155.50,Training Expenses - General,Passenger Railways,GPC
Statement 19/05/2015 to 17/06/2015,Corporate Resources,CROSS COUNTRY CC,28/05/2015,150.50,Training Expenses - General,Passenger Railways,GPC
Statement 19/05/2015 to 17/06/2015,Corporate Resources,CROSS COUNTRY CC,08/06/2015,387.50,Training Expenses - General,Passenger Railways,GPC
Statement 19/05/2015 to 17/06/2015,Corporate Resources,DESTINET LTD,30/05/2015,174.00,Publicity/Marketing - Information Provision,Advertising Services,GPC
Statement 19/05/2015 to 17/06/2015,Corporate Resources,DUNELM (SOFT FURNISHIN,31/05/2015,34.54,Materials - General,"Drapery, Window Coverings, and Upholstery Stores",GPC
Statement 19/05/2015 to 17/06/2015,Corporate Resources,E COAST MAIN LN CO LTD,22/05/2015,26.00,Public Transport -  Staff - General,Automobile Parking Lots and Garages,GPC
Statement 19/05/2015 to 17/06/2015,Corporate Resources,EAST MIDLANDS MARKET HAR,19/05/2015,10.50,Public Transport -  Staff - General,Automobile Parking Lots and Garages,GPC
Statement 19/05/2015 to 17/06/2015,Corporate Resources,EAST MIDLANDS MARKET HAR,20/05/2015,10.50,Public Transport -  Staff - General,Automobile Parking Lots and Garages,GPC
Statement 19/05/2015 to 17/06/2015,Corporate Resources,EAST MIDLANDS MARKET HAR,21/05/2015,10.50,Public Transport -  Staff - General,Automobile Parking Lots and Garages,GPC
Statement 19/05/2015 to 17/06/2015,Corporate Resources,EAST MIDLANDS MARKET HAR,28/05/2015,10.50,Public Transport -  Staff - General,Automobile Parking Lots and Garages,GPC
Statement 19/05/2015 to 17/06/2015,Corporate Resources,EAST MIDLANDS MARKET HAR,03/06/2015,10.50,Public Transport -  Staff - General,Automobile Parking Lots and Garages,GPC
Statement 19/05/2015 to 17/06/2015,Corporate Resources,EAST MIDLANDS MARKET HAR,04/06/2015,10.50,Public Transport -  Staff - General,Automobile Parking Lots and Garages,GPC
Statement 19/05/2015 to 17/06/2015,Corporate Resources,EAST MIDLANDS MARKET HAR,05/06/2015,10.50,Public Transport -  Staff - General,Automobile Parking Lots and Garages,GPC
Statement 19/05/2015 to 17/06/2015,Corporate Resources,EAST MIDLANDS MARKET HAR,08/06/2015,10.50,Public Transport -  Staff - General,Automobile Parking Lots and Garages,GPC
Statement 19/05/2015 to 17/06/2015,Corporate Resources,EAST MIDLANDS MARKET HAR,09/06/2015,10.50,Public Transport -  Staff - General,Automobile Parking Lots and Garages,GPC
Statement 19/05/2015 to 17/06/2015,Corporate Resources,EAST MIDLANDS MARKET HAR,09/06/2015,10.50,Public Transport -  Staff - General,Automobile Parking Lots and Garages,GPC
Statement 19/05/2015 to 17/06/2015,Corporate Resources,EAST MIDLANDS MARKET HAR,11/06/2015,10.50,Public Transport -  Staff - General,Automobile Parking Lots and Garages,GPC
Statement 19/05/2015 to 17/06/2015,Corporate Resources,EAST MIDLANDS MARKET HAR,11/06/2015,10.50,Public Transport -  Staff - General,Automobile Parking Lots and Garages,GPC
Statement 19/05/2015 to 17/06/2015,Corporate Resources,EAST MIDLANDS MARKET HAR,11/06/2015,10.50,Public Transport -  Staff - General,Automobile Parking Lots and Garages,GPC
Statement 19/05/2015 to 17/06/2015,Corporate Resources,EAST MIDLANDS MARKET HAR,12/06/2015,10.50,Public Transport -  Staff - General,Automobile Parking Lots and Garages,GPC
Statement 19/05/2015 to 17/06/2015,Corporate Resources,EAST MIDLANDS MARKET HAR,15/06/2015,10.50,Public Transport -  Staff - General,Automobile Parking Lots and Garages,GPC
Statement 19/05/2015 to 17/06/2015,Corporate Resources,EB FLEET FORGIVENESS,01/06/2015,84.00,Other Equipment & Materials - General,Business Services-Not Elsewhere Classified,GPC
Statement 19/05/2015 to 17/06/2015,Corporate Resources,EB FLEET FORGIVENESS,28/05/2015,84.00,Training Expenses - General,Business Services-Not Elsewhere Classified,GPC
Statement 19/05/2015 to 17/06/2015,Corporate Resources,EB TRAUMA TRIGGERED B,01/06/2015,84.00,Other Equipment & Materials - General,Business Services-Not Elsewhere Classified,GPC
Statement 19/05/2015 to 17/06/2015,Corporate Resources,EB TRAUMA TRIGGERED B,01/06/2015,84.00,Other Equipment & Materials - General,Business Services-Not Elsewhere Classified,GPC
Statement 19/05/2015 to 17/06/2015,Corporate Resources,EMAP LTD-SUBSCRIPTIONS,01/06/2015,186.43,Subscriptions - General,Miscellaneous Publishing and  Printing,GPC
Statement 19/05/2015 to 17/06/2015,Corporate Resources,EMAP LTD-SUBSCRIPTIONS,08/06/2015,249.00,Subscriptions - General,Miscellaneous Publishing and  Printing,GPC
Statement 19/05/2015 to 17/06/2015,Corporate Resources,FARM SUPPLIES,11/06/2015,25.75,Other Services - General,Hardware Stores,GPC
Statement 19/05/2015 to 17/06/2015,Corporate Resources,FOREIGN EXCHANGE FEE,08/06/2015,0.76,Other Equipment & Materials - General,Misc-Unknown,GPC
Statement 19/05/2015 to 17/06/2015,Corporate Resources,FOREIGN EXCHANGE FEE,12/06/2015,1.05,Subscriptions - General,Misc-Unknown,GPC
Statement 19/05/2015 to 17/06/2015,Corporate Resources,GANTTIC LLC,11/06/2015,38.26,Subscriptions - General,Miscellaneous and Specialty Retail Stores,GPC
Statement 19/05/2015 to 17/06/2015,Corporate Resources,GEORGE WALKER,12/06/2015,100.00,Other Services - General,"Building Materials, Lumber Stores",GPC
Statement 19/05/2015 to 17/06/2015,Corporate Resources,HARLOW BROS LTD,22/05/2015,234.11,Other Expenditure - General,"Building Materials, Lumber Stores",GPC
Statement 19/05/2015 to 17/06/2015,Corporate Resources,HARLOW BROS LTD,22/05/2015,46.76,Other Services - General,"Building Materials, Lumber Stores",GPC
Statement 19/05/2015 to 17/06/2015,Corporate Resources,HARLOW BROS LTD,23/05/2015,25.71,Other Services - General,"Building Materials, Lumber Stores",GPC
Statement 19/05/2015 to 17/06/2015,Corporate Resources,HARLOW BROS LTD,01/06/2015,3.48,Other Services - General,"Building Materials, Lumber Stores",GPC
Statement 19/05/2015 to 17/06/2015,Corporate Resources,HIGGOTTS,20/05/2015,32.92,Other Expenditure - General,Landscaping and Horticultural Services,GPC
Statement 19/05/2015 to 17/06/2015,Corporate Resources,HIGGOTTS,03/06/2015,17.50,Other Services - General,Landscaping and Horticultural Services,GPC
Statement 19/05/2015 to 17/06/2015,Corporate Resources,HIGGOTTS,08/06/2015,5.10,Other Services - General,Landscaping and Horticultural Services,GPC
Statement 19/05/2015 to 17/06/2015,Corporate Resources,HMCOURTS-SERVICE.G,10/06/2015,210.00,Other Expenditure - General,Fines,GPC
Statement 19/05/2015 to 17/06/2015,Corporate Resources,HMCOURTS-SERVICE.G,15/06/2015,210.00,Other Expenditure - General,Fines,GPC
Statement 19/05/2015 to 17/06/2015,Corporate Resources,HOLIDAY INN PRESTON FE,27/05/2015,360.00,Training Expenses - General,Holiday Inns,GPC
Statement 19/05/2015 to 17/06/2015,Corporate Resources,HOLIDAY INN PRESTON FE,02/06/2015,86.25,Training Expenses - General,Holiday Inns,GPC
Statement 19/05/2015 to 17/06/2015,Corporate Resources,HOOTSUITE MEDIA INC.,06/06/2015,27.59,Other Equipment & Materials - General,Business Services-Not Elsewhere Classified,GPC
Statement 19/05/2015 to 17/06/2015,Corporate Resources,IVANHOE COUNTRY STORE,23/05/2015,18.98,Other Services - General,Miscellaneous General Merchandise Stores,GPC
Statement 19/05/2015 to 17/06/2015,Corporate Resources,IVANHOE COUNTRY STORE,03/06/2015,45.99,Other Services - General,Miscellaneous General Merchandise Stores,GPC
Statement 19/05/2015 to 17/06/2015,Corporate Resources,IVANHOE COUNTRY STORE,03/06/2015,24.99,Other Services - General,Miscellaneous General Merchandise Stores,GPC
Statement 19/05/2015 to 17/06/2015,Corporate Resources,LCC CATERING SERVICES,10/06/2015,6.55,Other Expenditure - General,Government Services-Not Elsewhere Classified,GPC
Statement 19/05/2015 to 17/06/2015,Corporate Resources,LEGACY HOTELS,18/05/2015,95.00,Training Expenses - General,"Lodging-Hotels, Motels, Resorts",GPC
Statement 19/05/2015 to 17/06/2015,Corporate Resources,LINKEDIN-272 5053813,18/05/2015,189.95,Recruitment Advertising - General,Continuity/Subscription Merchants,GPC
Statement 19/05/2015 to 17/06/2015,Corporate Resources,LINKEDIN-273 3745273,20/05/2015,189.95,Recruitment Advertising - General,Continuity/Subscription Merchants,GPC
Statement 19/05/2015 to 17/06/2015,Corporate Resources,LINKEDIN-276 1204533,29/05/2015,189.95,Recruitment Advertising - General,Continuity/Subscription Merchants,GPC
Statement 19/05/2015 to 17/06/2015,Corporate Resources,LIVERPOOL DIR SIA,08/06/2015,220.00,Road Licences - General,"Detective Agencies, Protective Agencies, Security",GPC
Statement 19/05/2015 to 17/06/2015,Corporate Resources,LUL TICKET MACHINE,18/05/2015,5.00,Casual/Essential - General,Passenger Railways,GPC
Statement 19/05/2015 to 17/06/2015,Corporate Resources,LUL TICKET MACHINE,08/06/2015,10.00,Casual/Essential - General,Passenger Railways,GPC
Statement 19/05/2015 to 17/06/2015,Corporate Resources,LUL TICKET MACHINE,08/06/2015,30.00,Casual/Essential - General,Passenger Railways,GPC
Statement 19/05/2015 to 17/06/2015,Corporate Resources,LUL TICKET MACHINE,08/06/2015,20.00,Casual/Essential - General,Passenger Railways,GPC
Statement 19/05/2015 to 17/06/2015,Corporate Resources,LUL TICKET MACHINE,12/06/2015,20.00,Casual/Essential - General,Passenger Railways,GPC
Statement 19/05/2015 to 17/06/2015,Corporate Resources,LUL TICKET MACHINE,12/06/2015,10.00,Casual/Essential - General,Passenger Railways,GPC
Statement 19/05/2015 to 17/06/2015,Corporate Resources,LUL TICKET MACHINE,29/05/2015,20.00,Public Transport -  Staff - General,Passenger Railways,GPC
Statement 19/05/2015 to 17/06/2015,Corporate Resources,LUL TICKET MACHINE,04/06/2015,50.00,Public Transport -  Staff - General,Passenger Railways,GPC
Statement 19/05/2015 to 17/06/2015,Corporate Resources,LUL TICKET MACHINE,16/06/2015,50.00,Public Transport -  Staff - General,Passenger Railways,GPC
Statement 19/05/2015 to 17/06/2015,Corporate Resources,M6 TOLL,02/06/2015,4.00,Public Transport -  Staff - General,"Bridge and Road Fees, Tolls",GPC
Statement 19/05/2015 to 17/06/2015,Corporate Resources,MAKRO SELF SERVICE LEICES,28/05/2015,34.16,Materials - General,Wholesale Clubs,GPC
Statement 19/05/2015 to 17/06/2015,Corporate Resources,MELBOURNE GUN LTD,23/05/2015,7.50,Other Services - General,Sporting Goods Stores,GPC
Statement 19/05/2015 to 17/06/2015,Corporate Resources,MOLE COUNTRY STORES,05/06/2015,59.00,Other Expenditure - Public Enquiry fees,Agricultural Cooperatives,GPC
Statement 19/05/2015 to 17/06/2015,Corporate Resources,MYHERMES.CO.UK,15/06/2015,5.48,Other Expenditure - General,"Motor Freight Carriers, and Trucking",GPC
Statement 19/05/2015 to 17/06/2015,Corporate Resources,OYSTER RENEW WEB,19/05/2015,50.00,Public Transport -  Staff - General,Passenger Railways,GPC
Statement 19/05/2015 to 17/06/2015,Corporate Resources,PARKER MOTOR SERVICE,23/05/2015,24.96,Other Services - General,"Automotive Parts, Accessories Stores",GPC
Statement 19/05/2015 to 17/06/2015,Corporate Resources,PATISSERIE VALERIE,22/05/2015,4.70,Subsistence - General,"Eating Places, Restaurants",GPC
Statement 19/05/2015 to 17/06/2015,Corporate Resources,PAYPAL  DESIGNPACKA,01/06/2015,52.00,Other Services - General,Variety Stores,GPC
Statement 19/05/2015 to 17/06/2015,Corporate Resources,PIZZA EXPRESS REST,21/05/2015,20.00,Subsistence - General,"Eating Places, Restaurants",GPC
Statement 19/05/2015 to 17/06/2015,Corporate Resources,POUNDSTRETCHER 292,25/05/2015,12.97,Other Services - General,"Drapery, Window Coverings, and Upholstery Stores",GPC
Statement 19/05/2015 to 17/06/2015,Corporate Resources,PREMIER INN44521260,22/05/2015,52.00,Subsistence - General,PREMIER TRAVEL,GPC
Statement 19/05/2015 to 17/06/2015,Corporate Resources,PREMIER INN44521260,20/05/2015,71.00,Training Expenses - General,PREMIER TRAVEL,GPC
Statement 19/05/2015 to 17/06/2015,Corporate Resources,PREMIER INN44531610,07/06/2015,481.66,Training Expenses - General,PREMIER TRAVEL,GPC
Statement 19/05/2015 to 17/06/2015,Corporate Resources,PREMIER INN44531610,15/06/2015,578.33,Training Expenses - General,PREMIER TRAVEL,GPC
Statement 19/05/2015 to 17/06/2015,Corporate Resources,PUMPKIN CAFE,19/05/2015,3.86,Materials - General,"Package Stores, Beer, Wine, Liquor",GPC
Statement 19/05/2015 to 17/06/2015,Corporate Resources,RAIL GOURMET UK,12/06/2015,4.00,Subsistence - General,"Eating Places, Restaurants",GPC
Statement 19/05/2015 to 17/06/2015,Corporate Resources,RASMUS LIVING LTD,09/06/2015,130.00,Subsistence - General,"Lodging-Hotels, Motels, Resorts",GPC
Statement 19/05/2015 to 17/06/2015,Corporate Resources,RSPB,15/06/2015,150.00,Training Expenses - General,"Gift, Card, Novelty, and Souvenir Shops",GPC
Statement 19/05/2015 to 17/06/2015,Corporate Resources,RSPB,15/06/2015,80.00,Training Expenses - General,"Gift, Card, Novelty, and Souvenir Shops",GPC
Statement 19/05/2015 to 17/06/2015,Corporate Resources,RYMAN 1096,26/05/2015,5.97,Stationery - General,"Stationery, Office, and School Supply Stores",GPC
Statement 19/05/2015 to 17/06/2015,Corporate Resources,SAINSBURY'S S/MKT,21/05/2015,9.05,Materials - General,"Grocery Stores, Supermarkets",GPC
Statement 19/05/2015 to 17/06/2015,Corporate Resources,SAINSBURY'S S/MKT,16/06/2015,60.58,Materials - General,"Grocery Stores, Supermarkets",GPC
Statement 19/05/2015 to 17/06/2015,Corporate Resources,SAINSBURYS S/MKTS,29/05/2015,7.50,Materials - General,"Grocery Stores, Supermarkets",GPC
Statement 19/05/2015 to 17/06/2015,Corporate Resources,SALFORD PROFESSIONAL DEVE,02/06/2015,358.80,Conference - General,Schools and Educational Services-Not Elsewhere Cla,GPC
Statement 19/05/2015 to 17/06/2015,Corporate Resources,SALFORD PROFESSIONAL DEVE,02/06/2015,358.80,Training Expenses - General,Schools and Educational Services-Not Elsewhere Cla,GPC
Statement 19/05/2015 to 17/06/2015,Corporate Resources,SCREWFIX,12/06/2015,38.07,Operational Equipment - General,"Building Materials, Lumber Stores",GPC
Statement 19/05/2015 to 17/06/2015,Corporate Resources,SCREWFIX,09/06/2015,6.00,Other Services - General,"Building Materials, Lumber Stores",GPC
Statement 19/05/2015 to 17/06/2015,Corporate Resources,SCREWFIX,09/06/2015,2.99,Other Services - General,"Building Materials, Lumber Stores",GPC
Statement 19/05/2015 to 17/06/2015,Corporate Resources,SCREWFIX DIRECT,19/05/2015,125.00,Other Services - General,"Building Materials, Lumber Stores",GPC
Statement 19/05/2015 to 17/06/2015,Corporate Resources,SCREWFIX DIRECT LT,24/05/2015,16.85,Other Expenditure - General,"Building Materials, Lumber Stores",GPC
Statement 19/05/2015 to 17/06/2015,Corporate Resources,SCREWFIX DIRECT LT,24/05/2015,13.34,Other Expenditure - General,"Building Materials, Lumber Stores",GPC
Statement 19/05/2015 to 17/06/2015,Corporate Resources,SHEPSHED AUTO SPARES L,21/05/2015,8.56,R&M of Vehicles-Non Contract - General,Motorcycle Dealers,GPC
Statement 19/05/2015 to 17/06/2015,Corporate Resources,SLB SUPPLIES LTD,29/05/2015,65.00,Other Services - General,Pet Shops-Pet Food and Supplies,GPC
Statement 19/05/2015 to 17/06/2015,Corporate Resources,SONY STORE  ONLINE,21/04/2015,-31.66,Training Expenses - General,Household Appliance Stores,GPC
Statement 19/05/2015 to 17/06/2015,Corporate Resources,STAPLES UK,03/06/2015,11.48,Stationery - General,"Stationery, Office, and School Supply Stores",GPC
Statement 19/05/2015 to 17/06/2015,Corporate Resources,STARBUCKS,16/06/2015,2.40,Subsistence - General,Fast-Food Restaurants (Quick Payment Service Pilot,GPC
Statement 19/05/2015 to 17/06/2015,Corporate Resources,SUBWAY,21/05/2015,6.49,Subsistence - General,"Eating Places, Restaurants",GPC
Statement 19/05/2015 to 17/06/2015,Corporate Resources,SUBWAY,08/06/2015,6.98,Subsistence - General,"Eating Places, Restaurants",GPC
Statement 19/05/2015 to 17/06/2015,Corporate Resources,SUNNYSIDE GARDEN CENTRE,24/05/2015,27.97,Other Services - General,"Florists Supplies, Nursery Stock, and Flowers",GPC
Statement 19/05/2015 to 17/06/2015,Corporate Resources,TESCO PFS 3978,13/06/2015,6.66,Other Services - General,Service Stations (with or without Ancillary Servic,GPC
Statement 19/05/2015 to 17/06/2015,Corporate Resources,TESCO STORE 2846,31/05/2015,20.00,Protective Clothing & Uniforms - General,"Grocery Stores, Supermarkets",GPC
Statement 19/05/2015 to 17/06/2015,Corporate Resources,TESCO STORE 2849,22/05/2015,22.50,Other Services - General,"Grocery Stores, Supermarkets",GPC
Statement 19/05/2015 to 17/06/2015,Corporate Resources,TESCO STORES 2044,13/06/2015,16.30,Other Expenditure - General,"Grocery Stores, Supermarkets",GPC
Statement 19/05/2015 to 17/06/2015,Corporate Resources,TESCO-STORES 6065,13/06/2015,1.00,Materials - General,"Grocery Stores, Supermarkets",GPC
Statement 19/05/2015 to 17/06/2015,Corporate Resources,TFGM METROLINK,19/05/2015,3.10,Public Transport -  Staff - General,"Bus Lines, Charters, Tour Buses",GPC
Statement 19/05/2015 to 17/06/2015,Corporate Resources,TFGM METROLINK,01/06/2015,2.80,Public Transport -  Staff - General,"Bus Lines, Charters, Tour Buses",GPC
Statement 19/05/2015 to 17/06/2015,Corporate Resources,TFGM METROLINK,05/06/2015,3.10,Public Transport -  Staff - General,"Bus Lines, Charters, Tour Buses",GPC
Statement 19/05/2015 to 17/06/2015,Corporate Resources,TFGM METROLINK,08/06/2015,2.80,Public Transport -  Staff - General,"Bus Lines, Charters, Tour Buses",GPC
Statement 19/05/2015 to 17/06/2015,Corporate Resources,TFGM METROLINK,09/06/2015,2.80,Public Transport -  Staff - General,"Bus Lines, Charters, Tour Buses",GPC
Statement 19/05/2015 to 17/06/2015,Corporate Resources,TFGM METROLINK,15/06/2015,3.90,Public Transport -  Staff - General,"Bus Lines, Charters, Tour Buses",GPC
Statement 19/05/2015 to 17/06/2015,Corporate Resources,THE CARTRIDGE PEOPLE G,18/05/2015,17.98,Materials - General,"Office, Photographic, Photocopy, and Microfilm Equ",GPC
Statement 19/05/2015 to 17/06/2015,Corporate Resources,THE UNIVERSITY OF LIVERPO,04/06/2015,94.42,Training Expenses - General,"Colleges, Universities, Professional Schools, and",GPC
Statement 19/05/2015 to 17/06/2015,Corporate Resources,THETRAINLINE.COM,03/06/2015,115.77,Subsistence - General,Passenger Railways,GPC
Statement 19/05/2015 to 17/06/2015,Corporate Resources,THOMAS TELFORD LTD,16/06/2015,413.00,Books - General,Advertising Services,GPC
Statement 19/05/2015 to 17/06/2015,Corporate Resources,TOTALJOBS GROUP LTD,20/05/2015,149.00,Recruitment Advertising - General,Miscellaneous Publishing and  Printing,GPC
Statement 19/05/2015 to 17/06/2015,Corporate Resources,TOWN CENTRE C P-MERRION,28/05/2015,7.00,Schools Agency staff - Teaching Staff,Professional Services-Not Elsewhere Classified,GPC
Statement 19/05/2015 to 17/06/2015,Corporate Resources,TRADING STANDARDS INST,28/05/2015,1450.00,Training Expenses - General,CombinationMail/Phones and Retail Merchants,GPC
Statement 19/05/2015 to 17/06/2015,Corporate Resources,TRADING STANDARDS INST,02/06/2015,315.00,Training Expenses - General,CombinationMail/Phones and Retail Merchants,GPC
Statement 19/05/2015 to 17/06/2015,Corporate Resources,TRAINLINE.COM,03/06/2015,24.02,Subsistence - General,Passenger Railways,GPC
Statement 19/05/2015 to 17/06/2015,Corporate Resources,TRAINLINE.COM,03/06/2015,-22.80,Subsistence - General,Passenger Railways,GPC
Statement 19/05/2015 to 17/06/2015,Corporate Resources,TRAVELODGE WEBSITE,26/05/2015,110.25,Other Expenditure - General,Travelodge,GPC
Statement 19/05/2015 to 17/06/2015,Corporate Resources,TRAVELODGE WEBSITE,16/06/2015,372.17,Training Expenses - General,Travelodge,GPC
Statement 19/05/2015 to 17/06/2015,Corporate Resources,TRAVELODGE WEBSITE,16/06/2015,578.25,Training Expenses - General,Travelodge,GPC
Statement 19/05/2015 to 17/06/2015,Corporate Resources,TSGN,27/05/2015,71.00,Public Transport -  Staff - General,Passenger Railways,GPC
Statement 19/05/2015 to 17/06/2015,Corporate Resources,VUE NCS CITB HS&E TEST,02/06/2015,17.50,Other Equipment & Materials - General,Schools and Educational Services-Not Elsewhere Cla,GPC
Statement 19/05/2015 to 17/06/2015,Corporate Resources,W M MORRISONS PLC,03/06/2015,15.00,Materials - General,"Grocery Stores, Supermarkets",GPC
Statement 19/05/2015 to 17/06/2015,Corporate Resources,WASABI KINGS CROSS,22/05/2015,6.10,Subsistence - General,"Eating Places, Restaurants",GPC
Statement 19/05/2015 to 17/06/2015,Corporate Resources,WEB HOSTING,15/06/2015,5.39,Other Expenditure - General,"Computer Maintenance, Repair, and Services Not Els",GPC
Statement 19/05/2015 to 17/06/2015,Corporate Resources,WEST COAST TRAINS,14/06/2015,60.00,Casual/Essential - General,Passenger Railways,GPC
Statement 19/05/2015 to 17/06/2015,Corporate Resources,WEST COAST TRAINS,05/06/2015,19.30,Public Transport -  Staff - General,Passenger Railways,GPC
Statement 19/05/2015 to 17/06/2015,Corporate Resources,WHITE PAPER CONFERENCE,27/05/2015,208.80,Training Expenses - General,Professional Services-Not Elsewhere Classified,GPC
Statement 19/05/2015 to 17/06/2015,Corporate Resources,WICKES,24/05/2015,22.49,Other Expenditure - General,Home Supply Warehouse,GPC
Statement 19/05/2015 to 17/06/2015,Corporate Resources,WICKES,31/05/2015,11.63,Other Expenditure - General,"Building Materials, Lumber Stores",GPC
Statement 19/05/2015 to 17/06/2015,Corporate Resources,WICKES,03/06/2015,17.98,Other Expenditure - General,"Building Materials, Lumber Stores",GPC
Statement 19/05/2015 to 17/06/2015,Corporate Resources,WICKES,03/06/2015,66.61,Other Services - General,"Building Materials, Lumber Stores",GPC
Statement 19/05/2015 to 17/06/2015,Corporate Resources,WILKO RETAIL LIMIT,24/05/2015,29.00,Other Services - General,Household Appliance Stores,GPC
Statement 19/05/2015 to 17/06/2015,Corporate Resources,WILKO RETAIL LIMIT,24/05/2015,7.00,Other Services - General,Household Appliance Stores,GPC
Statement 19/05/2015 to 17/06/2015,Corporate Resources,WILKO RETAIL LIMIT,25/05/2015,12.50,Other Services - General,Household Appliance Stores,GPC
Statement 19/05/2015 to 17/06/2015,Corporate Resources,WILKO RETAIL LIMIT,22/05/2015,25.25,Stationery - General,Household Appliance Stores,GPC
Statement 19/05/2015 to 17/06/2015,Corporate Resources,WM MORRISON 054,21/05/2015,2.45,Other Expenditure - General,"Grocery Stores, Supermarkets",GPC
Statement 19/05/2015 to 17/06/2015,Corporate Resources,WM MORRISON 054,24/05/2015,8.60,Other Expenditure - General,"Grocery Stores, Supermarkets",GPC
Statement 19/05/2015 to 17/06/2015,Corporate Resources,WP-HEMMING GROUP L,08/06/2015,140.00,Subscriptions - General,Business Services-Not Elsewhere Classified,GPC
Statement 19/05/2015 to 17/06/2015,Corporate Resources,WWW.BIPSOLUTIONS.COM,12/06/2015,295.00,Training Expenses - General,Business and Secretarial Schools,GPC
Statement 19/05/2015 to 17/06/2015,Corporate Resources,WWW.COMMIDEA.COM,28/05/2015,71.97,IT Equipment - General,Computer and Data Processing Services,GPC
Statement 19/05/2015 to 17/06/2015,Corporate Resources,WWW.DVLA.GOV.UK,11/06/2015,227.50,Road Licences - General,Government Services-Not Elsewhere Classified,GPC
Statement 19/05/2015 to 17/06/2015,Corporate Resources,WWW.OFCOM.ORG.UK,19/05/2015,75.00,Petrol/Oil/Tyres/Spares - General,Professional Services-Not Elsewhere Classified,GPC
Statement 19/05/2015 to 17/06/2015,Corporate Resources,WWW.OMS.CO.UK,29/05/2015,135.00,Training Expenses - General,"Colleges, Universities, Professional Schools, and",GPC
Statement 19/05/2015 to 17/06/2015,Corporate Resources,WWW.TRADEFIXDIRECT.COM,31/05/2015,64.39,Other Services - General,Industrial Supplies Not Elsewhere Classified,GPC
Statement 19/05/2015 to 17/06/2015,E&T,Am zon Svcs Europe SAR,03/06/2015,472.59,Other Equipment & Materials - General,Book Stores,GPC
Statement 19/05/2015 to 17/06/2015,E&T,Am zon Svcs Europe SAR,03/06/2015,100.11,Other Equipment & Materials - General,Book Stores,GPC
Statement 19/05/2015 to 17/06/2015,E&T,Am zon UK M rketpl ce,03/06/2015,2.99,Materials - General,Miscellaneous and Specialty Retail Stores,GPC
Statement 19/05/2015 to 17/06/2015,E&T,Am zon UK Ret il,03/06/2015,91.20,Other Equipment & Materials - General,Direct Marketers - Other,GPC
Statement 19/05/2015 to 17/06/2015,E&T,Amazon Svcs Europe SAR,20/05/2015,16.08,Books - General,Book Stores,GPC
Statement 19/05/2015 to 17/06/2015,E&T,Amazon Svcs Europe SAR,21/05/2015,13.80,Books - General,Book Stores,GPC
Statement 19/05/2015 to 17/06/2015,E&T,Amazon Svcs Europe SAR,24/05/2015,30.98,Books - General,Book Stores,GPC
Statement 19/05/2015 to 17/06/2015,E&T,Amazon Svcs Europe SAR,12/06/2015,2.99,Books - General,Book Stores,GPC
Statement 19/05/2015 to 17/06/2015,E&T,Amazon Svcs Europe SAR,13/06/2015,2.94,Books - General,Book Stores,GPC
Statement 19/05/2015 to 17/06/2015,E&T,Amazon Svcs Europe SAR,15/06/2015,10.74,Books - General,Book Stores,GPC
Statement 19/05/2015 to 17/06/2015,E&T,Amazon Svcs Europe SAR,15/06/2015,2.70,Books - General,Book Stores,GPC
Statement 19/05/2015 to 17/06/2015,E&T,Amazon Svcs Europe SAR,21/05/2015,14.98,Other Equipment & Materials - General,Book Stores,GPC
Statement 19/05/2015 to 17/06/2015,E&T,Amazon Svcs Europe SAR,26/05/2015,23.97,Other Equipment & Materials - General,Book Stores,GPC
Statement 19/05/2015 to 17/06/2015,E&T,Amazon Svcs Europe SAR,29/05/2015,295.84,Other Recoverable Charges - General,Book Stores,GPC
Statement 19/05/2015 to 17/06/2015,E&T,Amazon UK Marketplace,20/05/2015,9.63,Materials - General,Miscellaneous and Specialty Retail Stores,GPC
Statement 19/05/2015 to 17/06/2015,E&T,Amazon UK Marketplace,20/05/2015,30.00,Materials - General,Miscellaneous and Specialty Retail Stores,GPC
Statement 19/05/2015 to 17/06/2015,E&T,Amazon UK Marketplace,11/06/2015,10.99,Materials - General,Miscellaneous and Specialty Retail Stores,GPC
Statement 19/05/2015 to 17/06/2015,E&T,Amazon UK Marketplace,21/05/2015,3.48,Other Equipment & Materials - General,Book Stores,GPC
Statement 19/05/2015 to 17/06/2015,E&T,Amazon UK Marketplace,11/06/2015,7.99,Other Equipment & Materials - General,Miscellaneous and Specialty Retail Stores,GPC
Statement 19/05/2015 to 17/06/2015,E&T,Amazon UK Retail,28/05/2015,155.00,Books - General,Direct Marketers - Other,GPC
Statement 19/05/2015 to 17/06/2015,E&T,Amazon UK Retail,21/05/2015,19.57,Other Equipment & Materials - General,Direct Marketers - Other,GPC
Statement 19/05/2015 to 17/06/2015,E&T,Amazon UK Retail,12/06/2015,40.10,Other Expenditure - General,Direct Marketers - Other,GPC
Statement 19/05/2015 to 17/06/2015,E&T,Amazon UK Retail,12/06/2015,38.33,Other Expenditure - General,Direct Marketers - Other,GPC
Statement 19/05/2015 to 17/06/2015,E&T,Amazon UK Retail,12/06/2015,55.00,Other Expenditure - General,Direct Marketers - Other,GPC
Statement 19/05/2015 to 17/06/2015,E&T,Amazon UK Retail,13/06/2015,9.86,Other Expenditure - General,Direct Marketers - Other,GPC
Statement 19/05/2015 to 17/06/2015,E&T,Amazon UK Retail,14/06/2015,16.87,Other Expenditure - General,Direct Marketers - Other,GPC
Statement 19/05/2015 to 17/06/2015,E&T,Amazon UK Retail,11/06/2015,22.66,Stationery - General,Direct Marketers - Other,GPC
Statement 19/05/2015 to 17/06/2015,E&T,ASSOCIATION OF INDUSTR,28/05/2015,75.00,Conference - General,Charitable and Social Service Organizations,GPC
Statement 19/05/2015 to 17/06/2015,E&T,EAST MIDLANDS LEICESTER,08/06/2015,7.00,Casual/Essential - General,Automobile Parking Lots and Garages,GPC
Statement 19/05/2015 to 17/06/2015,E&T,EAST MIDLANDS LEICESTER,02/06/2015,7.00,Other Transport Costs - General,Automobile Parking Lots and Garages,GPC
Statement 19/05/2015 to 17/06/2015,E&T,EAST MIDLANDS LEICESTER,05/06/2015,13.00,Other Transport Costs - General,Automobile Parking Lots and Garages,GPC
Statement 19/05/2015 to 17/06/2015,E&T,EASTMIDLANDSTRAINS,19/05/2015,157.50,Casual/Essential - General,Passenger Railways,GPC
Statement 19/05/2015 to 17/06/2015,E&T,EASTMIDLANDSTRAINS,26/05/2015,57.60,Public Transport -  Staff - General,Passenger Railways,GPC
Statement 19/05/2015 to 17/06/2015,E&T,EASTMIDLANDSTRAINS,03/06/2015,324.00,Public Transport -  Staff - General,Passenger Railways,GPC
Statement 19/05/2015 to 17/06/2015,E&T,EASTMIDLANDSTRAINS,04/06/2015,161.50,Public Transport -  Staff - General,Passenger Railways,GPC
Statement 19/05/2015 to 17/06/2015,E&T,EASTMIDLANDSTRAINS,05/06/2015,137.00,Public Transport -  Staff - General,Passenger Railways,GPC
Statement 19/05/2015 to 17/06/2015,E&T,EASTMIDLANDSTRAINS,10/06/2015,161.50,Public Transport -  Staff - General,Passenger Railways,GPC
Statement 19/05/2015 to 17/06/2015,E&T,FTA MOTO,29/05/2015,275.00,Subsistence - General,Professional Services-Not Elsewhere Classified,GPC
Statement 19/05/2015 to 17/06/2015,E&T,FTA MOTO,29/05/2015,275.00,Subsistence - General,Professional Services-Not Elsewhere Classified,GPC
Statement 19/05/2015 to 17/06/2015,E&T,MACHINE MART LTD,20/05/2015,-28.97,Apptn of Operational Bldgs - General,"Equipment Rental and Leasing Services, Tool Rental",GPC
Statement 19/05/2015 to 17/06/2015,E&T,MEDISUPPLIES LTD,16/06/2015,124.02,Materials - General,Miscellaneous and Specialty Retail Stores,GPC
Statement 19/05/2015 to 17/06/2015,E&T,MILL ON THE SOAR,21/05/2015,85.80,Hospitality - General,"Drinking Places (Alcoholic Beverages)-Bars, Tavern",GPC
Statement 19/05/2015 to 17/06/2015,E&T,PAYPAL  DESKWAREHOU,05/06/2015,58.00,Materials - General,Miscellaneous and Specialty Retail Stores,GPC
Statement 19/05/2015 to 17/06/2015,E&T,PAYPAL  SOUNDSWHOLE,26/05/2015,29.70,Other Equipment & Materials - General,Business Services-Not Elsewhere Classified,GPC
Statement 19/05/2015 to 17/06/2015,E&T,PAYPAL  VINYLVALUEL,08/06/2015,58.15,Other Equipment & Materials - General,Durable Goods Not Elsewhere Classified,GPC
Statement 19/05/2015 to 17/06/2015,E&T,PAYPAL  ZETLANDBOXE,26/05/2015,33.99,Stationery - General,"Stationery, Office, and School Supply Stores",GPC
Statement 19/05/2015 to 17/06/2015,E&T,ROYAL MAIL,27/05/2015,333.00,Postal Services - General,Postage Stamps,GPC
Statement 19/05/2015 to 17/06/2015,E&T,RSPB SALES TRADING,03/06/2015,58.95,Materials - General,"Gift, Card, Novelty, and Souvenir Shops",GPC
Statement 19/05/2015 to 17/06/2015,E&T,SCREWFIX DIRECT,09/06/2015,720.82,Consultants & Specialists - General,"Building Materials, Lumber Stores",GPC
Statement 19/05/2015 to 17/06/2015,E&T,TESCO STORES 2950,10/06/2015,20.00,Materials - General,"Grocery Stores, Supermarkets",GPC
Statement 19/05/2015 to 17/06/2015,E&T,TRAINLINE.COM,01/06/2015,161.16,Public Transport -  Staff - General,Passenger Railways,GPC
Statement 19/05/2015 to 17/06/2015,E&T,TRAINLINE.COM,03/06/2015,161.16,Public Transport -  Staff - General,Passenger Railways,GPC
Statement 19/05/2015 to 17/06/2015,E&T,TVLICENSING.CO.UK,09/06/2015,145.50,Schools Agency staff - Teaching Staff,"Management, Consulting and Public Relations Servic",GPC
Statement 19/05/2015 to 17/06/2015,E&T,VINYL VALUE LTD,08/06/2015,11.63,Materials - General,Miscellaneous and Specialty Retail Stores,GPC
Statement 19/05/2015 to 17/06/2015,E&T,WWW.DVLA.GOV.UK,09/06/2015,227.50,Road Licences - General,Government Services-Not Elsewhere Classified,GPC
Statement 19/05/2015 to 17/06/2015,E&T,WWW.DVLA.GOV.UK,09/06/2015,227.50,Road Licences - General,Government Services-Not Elsewhere Classified,GPC
Statement 19/05/2015 to 17/06/2015,E&T,WWW.DVLA.GOV.UK,11/06/2015,167.50,Road Licences - General,Government Services-Not Elsewhere Classified,GPC
Statement 19/05/2015 to 17/06/2015,E&T,WWW.DVLA.GOV.UK,11/06/2015,227.50,Road Licences - General,Government Services-Not Elsewhere Classified,GPC
Statement 19/05/2015 to 17/06/2015,E&T,WWW.DVLA.GOV.UK,15/06/2015,167.50,Road Licences - General,Government Services-Not Elsewhere Classified,GPC
Statement 19/05/2015 to 17/06/2015,E&T,WWW.INCARSAFETYCENTRE.,26/05/2015,125.00,S.E.N. Taxi Hire - Home to School,"Automotive Parts, Accessories Stores",GPC
Statement 19/05/2015 to 17/06/2015,E&T,WWW.INCARSAFETYCENTRE.,09/06/2015,256.60,S.E.N. Taxi Hire - Home to School,"Automotive Parts, Accessories Stores",GPC
Statement 19/05/2015 to 17/06/2015,E&T,WWW.MICRODRAINAGE.CO.U,11/06/2015,867.83,Training Expenses - General,Computer and Data Processing Services,GPC
Statement 19/05/2015 to 17/06/2015,E&T,WWW.NECCONTRACT.COM,26/05/2015,470.00,Books - General,Miscellaneous Publishing and  Printing,GPC
Statement 19/05/2015 to 17/06/2015,E&T,WWW.OFFICESTATIONERY.CO.,21/05/2015,42.27,Fixtures & Fittings - General,"Stationary, Office Supplies, Printing and Writing",GPC
Statement 19/05/2015 to 17/06/2015,E&T,WWW.OFFICESTATIONERY.CO.,26/05/2015,40.41,Stationery - General,"Stationary, Office Supplies, Printing and Writing",GPC
Statement 19/05/2015 to 17/06/2015,E&T,WWW.RYMAN.CO.UK,26/05/2015,56.31,Other Equipment & Materials - General,"Stationery, Office, and School Supply Stores",GPC
Statement 19/05/2015 to 17/06/2015,Leicestershire Highways,BOWMONK LTD,03/06/2015,79.00,Materials - General,"Automotive Parts, Accessories Stores",GPC
Statement 19/05/2015 to 17/06/2015,Leicestershire Highways,WWW.DVLA.GOV.UK,27/05/2015,167.50,Road Licences - General,Government Services-Not Elsewhere Classified,GPC
Statement 19/05/2015 to 17/06/2015,Leicestershire Highways,WWW.DVLA.GOV.UK,09/06/2015,652.50,Road Licences - General,Government Services-Not Elsewhere Classified,GPC
Statement 19/05/2015 to 17/06/2015,Leicestershire Highways,WWW.DVLA.GOV.UK,09/06/2015,202.50,Road Licences - General,Government Services-Not Elsewhere Classified,GPC
Statement 19/05/2015 to 17/06/2015,Leicestershire Highways,WWW.DVLA.GOV.UK,09/06/2015,202.50,Road Licences - General,Government Services-Not Elsewhere Classified,GPC
Statement 19/05/2015 to 17/06/2015,Leicestershire Highways,WWW.DVLA.GOV.UK,11/06/2015,167.50,Road Licences - General,Government Services-Not Elsewhere Classified,GPC
Statement 19/05/2015 to 17/06/2015,Leicestershire Highways,WWW.DVLA.GOV.UK,11/06/2015,227.50,Road Licences - General,Government Services-Not Elsewhere Classified,GPC
Statement 19/05/2015 to 17/06/2015,Leicestershire Highways,WWW.DVLA.GOV.UK,11/06/2015,227.50,Road Licences - General,Government Services-Not Elsewhere Classified,GPC
Statement 19/05/2015 to 17/06/2015,Leicestershire Highways,WWW.DVLA.GOV.UK,11/06/2015,167.50,Road Licences - General,Government Services-Not Elsewhere Classified,GPC
Statement 19/05/2015 to 17/06/2015,Leicestershire Highways,WWW.DVLA.GOV.UK,11/06/2015,227.50,Road Licences - General,Government Services-Not Elsewhere Classified,GPC
Statement 19/05/2015 to 17/06/2015,Leicestershire Highways,WWW.DVLA.GOV.UK,11/06/2015,227.50,Road Licences - General,Government Services-Not Elsewhere Classified,GPC
Statement 19/05/2015 to 17/06/2015,Leicestershire Highways,WWW.DVLA.GOV.UK,11/06/2015,227.50,Road Licences - General,Government Services-Not Elsewhere Classified,GPC
Statement 19/05/2015 to 17/06/2015,Public Health,Amazon Svcs Europe SAR,19/05/2015,-122.20,Dept Administration - General,Book Stores,GPC
Statement 19/05/2015 to 17/06/2015,Public Health,Amazon Svcs Europe SAR,28/05/2015,49.98,IT Equipment - General,Book Stores,GPC
Statement 19/05/2015 to 17/06/2015,Public Health,Amazon UK Marketplace,12/06/2015,6.99,Stationery - General,Miscellaneous and Specialty Retail Stores,GPC
Statement 19/05/2015 to 17/06/2015,Public Health,Amazon UK Retail,12/06/2015,59.00,Stationery - General,Direct Marketers - Other,GPC
Statement 19/05/2015 to 17/06/2015,Public Health,FACEBOOK 6AAHE72X32,07/06/2015,20.07,Advertising - General,Advertising Services,GPC
Statement 19/05/2015 to 17/06/2015,Public Health,FACEBOOK YT27G7JW32,31/05/2015,13.00,Advertising - General,Advertising Services,GPC
Statement 19/05/2015 to 17/06/2015,Public Health,HIGH STREET VOUCHE,01/06/2015,100.00,Publicity/Marketing - General,"Gift, Card, Novelty, and Souvenir Shops",GPC
Statement 19/05/2015 to 17/06/2015,Public Health,LUTON AIRPORT MIDLAND RD,04/06/2015,6.33,Subsistence - General,Professional Services-Not Elsewhere Classified,GPC
Statement 19/05/2015 to 17/06/2015,Public Health,NCP LIMITED,02/06/2015,7.00,Subsistence - General,Automobile Parking Lots and Garages,GPC
Statement 19/05/2015 to 17/06/2015,Public Health,PARTICIPANT UK LIMITED,22/05/2015,170.00,Conference - General,Computer Software Stores,GPC
Statement 19/05/2015 to 17/06/2015,Public Health,PAYPAL  WALKERREED,28/05/2015,28.60,Other Equipment & Materials - General,Advertising Services,GPC
Statement 19/05/2015 to 17/06/2015,Public Health,TRAINLINE.COM,18/05/2015,152.49,Casual/Essential - General,Passenger Railways,GPC
Statement 19/05/2015 to 17/06/2015,Public Health,TRAINLINE.COM,05/06/2015,187.17,Casual/Essential - General,Passenger Railways,GPC
Statement 19/05/2015 to 17/06/2015,Public Health,TRAINLINE.COM,28/05/2015,235.72,Public Transport -  Staff - General,Passenger Railways,GPC
Statement 19/05/2015 to 17/06/2015,Public Health,TRAINLINE.COM,01/06/2015,72.93,Public Transport -  Staff - General,Passenger Railways,GPC
Statement 19/05/2015 to 17/06/2015,Public Health,TRAINLINE.COM,03/06/2015,35.70,Public Transport -  Staff - General,Passenger Railways,GPC
Statement 19/05/2015 to 17/06/2015,Public Health,VALE OF GLAMORGAN,28/05/2015,60.00,Conference - General,"Lodging-Hotels, Motels, Resorts",GPC
Statement 19/05/2015 to 17/06/2015,Public Health,WALKERREED STACY,29/05/2015,18.11,Other Equipment & Materials - General,Miscellaneous Publishing and  Printing,GPC
"**Amounts stated are net of VAT, except where VAT has not been recovered.",,,,,,,
